Workbook

Sheet tabula (hidden)
C2: "Ģeogrāfijas/tūrisma viktorīna" (tiešsaistē / vebinārā) | 2024.gada 26.oktobris
B3: Grupa | C3: # | D3: Dalībnieks | Raunds | Tēma | Max punkti raundā (bez bonusiem) | E3: 1 | F3: 2 | G3: 3 | H3: 4 | I3: 5 | J3: 6 | K3: 7 | L3: 8 | M3: 9 | N3: 10 | O3: KOPĀ | P3: Laiks kopā uz pareizajām atbildēm | Q3: Pareizās atbildes (max 68) | R3: Vid.laiks uz 1 pareizo atb.
E4: Pavediens | F4: Divas atbildes | G4: Ekspresis | H4: Burtu mīkla | I4: Ķēde | J4: Latvija | K4: Risks: atpazīsti objektu | L4: Kas kopīgs? | M4: Liekais pazūd ārpus kastes | N4: Audio
E5: 150 | F5: 180 | G5: =15*12 -> 180 | H5: 180 | I5: 175 | J5: 150 | K5: 120 | L5: 180 | M5: 180 | N5: 150 | O5: =SUM(E5:N5) -> 1645
D6: Vidējie rādītāji | E6: =ROUND(AVERAGE(E7:E159),1) -> 64.9 | F6: =ROUND(AVERAGE(F7:F159),1) -> 77.9 | G6: 79.1 | H6: 43.6 | I6: 87.3 | J6: 68.1 | K6: 15.3 | L6: 85.4 | M6: 90.5 | N6: 41.3 | O6: 653.3 | P6: =CONCATENATE(Y6," ","min"," ",LEFT(AA6,2),",",RIGHT(AA6,3),"") -> 08 min 26,238 | Q6: =ROUND(AVERAGE(Q7:Q90),2) -> 40.64 | R6: =CONCATENATE(AB6," ","sek") -> 12,473 sek | W6: =AVERAGE(W7:W200) -> 506.8879881 | X6: =ROUND((W6/60),3) -> 8.448 | Y6: =IF(W6<600,CONCATENATE(0,LEFT(X6,1)),LEFT(X6,2)) -> 08 | Z6: =Y6*60 -> 480 | AA6: =W6-Z6 -> 26.8879881 | AB6: =ROUND(W6/Q6,3) -> 12.473
B7: 3 | C7: 1 | D7: Kurzemnieks | E7: 116 | F7: 146 | G7: 143 | H7: 84 | I7: 140 | J7: 143 | K7: 28 | L7: 156 | M7: 138 | N7: 73 | O7: 1167 | P7: 07 min. 41,434 | Q7: 60 | R7: 07,691 sek. | T7: =LEFT(P7,2) -> 07 | U7: =MID(P7,9,2) -> 41 | V7: =RIGHT(P7,3) -> 434 | W7: =LEFT(P7,2)*60+MID(P7,9,2)+RIGHT(P7,3)/1000 -> 461.434
B8: 1 | C8: 2 | D8: Āreče | E8: 107 | F8: 126 | G8: 109 | H8: 103 | I8: 161 | J8: 120 | K8: 68 | L8: 127 | M8: 168 | N8: 74 | O8: 1163 | P8: 05 min. 57,442 | Q8: 56 | R8: 06,383 sek. | T8: =LEFT(P8,2) -> 05 | U8: =MID(P8,9,2) -> 57 | V8: =RIGHT(P8,3) -> 442 | W8: =LEFT(P8,2)*60+MID(P8,9,2)+RIGHT(P8,3)/1000 -> 357.442
B9: 1 | C9: 3 | D9: 8kb24 | E9: 107 | F9: 121 | G9: 138 | H9: 100 | I9: 137 | J9: 110 | K9: 56 | L9: 165 | M9: 119 | N9: 57 | O9: 1110 | P9: 08 min. 13,231 | Q9: 58 | R9: 08,504 sek. | T9: 08 | U9: 13 | V9: 231 | W9: 493.231
B10: 3 | C10: 4 | D10: Bunkurs_13 | E10: 110 | F10: 108 | G10: 114 | H10: 111 | I10: 159 | J10: 120 | K10: 17 | L10: 119 | M10: 144 | N10: 96 | O10: 1098 | P10: 06 min. 28,270 | Q10: 55 | R10: 07,059 sek. | T10: 06 | U10: 28 | V10: 270 | W10: 388.27
B11: 1 | C11: 5 | D11: Egle | E11: 115 | F11: 115 | G11: 96 | H11: 91 | I11: 143 | J11: 121 | K11: 14 | L11: 151 | M11: 122 | N11: 55 | O11: 1023 | P11: 08 min. 40,743 | Q11: 55 | R11: 09,468 sek. | T11: 08 | U11: 40 | V11: 743 | W11: 520.743
B12: 3 | C12: 6 | D12: LFG jeb LegFeelsGood! | E12: 78 | F12: 134 | G12: 98 | H12: 113 | I12: 111 | J12: 81 | K12: 17 | L12: 139 | M12: 129 | N12: 102 | O12: 1002 | P12: 07 min. 04,402 | Q12: 53 | R12: 08,008 sek. | T12: 07 | U12: 04 | V12: 402 | W12: 424.402
B13: 1 | C13: 7 | D13: Okavango | E13: 118 | F13: 127 | G13: 102 | H13: 98 | I13: 152 | J13: 111 | K13: 12 | L13: 132 | M13: 114 | N13: 35 | O13: 1001 | P13: 05 min. 52,906 | Q13: 50 | R13: 07,058 sek. | T13: 05 | U13: 52 | V13: 906 | W13: 352.906
B14: 1 | C14: 8 | D14: Miksiņš | E14: 89 | F14: 106 | G14: 118 | H14: 69 | I14: 150 | J14: 115 | K14: 29 | L14: 147 | M14: 125 | N14: 46 | O14: 994 | P14: 11 min. 20,923 | Q14: 59 | R14: 11,541 sek. | T14: 11 | U14: 20 | V14: 923 | W14: 680.923
B15: 2 | C15: 9 | D15: Imantā futbola nav | E15: 105 | F15: 140 | G15: 84 | H15: 100 | I15: 162 | J15: 77 | K15: 35 | L15: 90 | M15: 120 | N15: 56 | O15: 969 | P15: 06 min. 40,776 | Q15: 49 | R15: 08,179 sek. | T15: 06 | U15: 40 | V15: 776 | W15: 400.776
B16: 3 | C16: 10 | D16: Rupuči, turās! | E16: 117 | F16: 66 | G16: 109 | H16: 76 | I16: 112 | J16: 66 | K16: 45 | L16: 112 | M16: 175 | N16: 69 | O16: 947 | P16: 07 min. 09,830 | Q16: 50 | R16: 08,597 sek. | T16: 07 | U16: 09 | V16: 830 | W16: 429.83
B17: 2 | C17: 11 | D17: Divi cilvēki | E17: 93 | F17: 92 | G17: 81 | H17: 72 | I17: 154 | J17: 102 | K17: 37 | L17: 147 | M17: 90 | N17: 67 | O17: 935 | P17: 09 min. 34,768 | Q17: 52 | R17: 11,053 sek. | T17: 09 | U17: 34 | V17: 768 | W17: 574.768
B18: 2 | C18: 12 | D18: Grūdmūsvelcjūs | E18: 101 | F18: 108 | G18: 116 | H18: 55 | I18: 142 | J18: 59 | K18: 27 | L18: 94 | M18: 149 | N18: 47 | O18: 898 | P18: 05 min. 38,193 | Q18: 46 | R18: 07,352 sek. | T18: 05 | U18: 38 | V18: 193 | W18: 338.193
B19: 2 | C19: 13 | D19: Dunikas bridēji | E19: 92 | F19: 178 | G19: 105 | H19: 44 | I19: 115 | J19: 99 | K19: 39 | L19: 92 | M19: 117 | N19: 14 | O19: 895 | P19: 05 min. 52,132 | Q19: 45 | R19: 07,825 sek. | T19: 05 | U19: 52 | V19: 132 | W19: 352.132
B20: 3 | C20: 14 | D20: lielhercogs | E20: 103 | F20: 147 | G20: 91 | H20: 71 | I20: 115 | J20: 49 | K20: 44 | L20: 124 | M20: 86 | N20: 56 | O20: 886 | P20: 08 min. 13,375 | Q20: 49 | R20: 10,069 sek. | T20: 08 | U20: 13 | V20: 375 | W20: 493.375
B21: 1 | C21: 15 | D21: Virsskaņas alus iznīcinātājs | E21: 92 | F21: 96 | G21: 98 | H21: 24 | I21: 103 | J21: 90 | K21: 49 | L21: 78 | M21: 163 | N21: 87 | O21: 880 | P21: 10 min. 16,249 | Q21: 52 | R21: 11,851 sek. | T21: 10 | U21: 16 | V21: 249 | W21: 616.249
B22: 3 | C22: 16 | D22: Mazkaloriju biskvīts | E22: 102 | F22: 75 | G22: 82 | H22: 99 | I22: 91 | J22: 86 | K22: 23 | L22: 128 | M22: 121 | N22: 62 | O22: 869 | P22: 12 min. 49,787 | Q22: 57 | R22: 13,505 sek. | T22: 12 | U22: 49 | V22: 787 | W22: 769.787
B23: 3 | C23: 17 | D23: Poga | E23: 109 | F23: 76 | G23: 78 | H23: 56 | I23: 108 | J23: 112 | K23: 62 | L23: 96 | M23: 115 | N23: 57 | O23: 869 | P23: 11 min. 03,462 | Q23: 52 | R23: 12,759 sek. | T23: 11 | U23: 03 | V23: 462 | W23: 663.462
B24: 3 | C24: 18 | D24: Jaunanglijas gliemju zupa | E24: 99 | F24: 60 | G24: 89 | H24: 84 | I24: 131 | J24: 120 | K24: 32 | L24: 104 | M24: 100 | N24: 46 | O24: 865 | P24: 07 min. 48,286 | Q24: 48 | R24: 09,756 sek. | T24: 07 | U24: 48 | V24: 286 | W24: 468.286
B25: 1 | C25: 19 | D25: Viesis | E25: 70 | F25: 108 | G25: 90 | H25: 60 | I25: 153 | J25: 85 | K25: 27 | L25: 103 | M25: 102 | N25: 47 | O25: 845 | P25: 08 min. 31,187 | Q25: 48 | R25: 10,650 sek. | T25: 08 | U25: 31 | V25: 187 | W25: 511.187
B26: 1 | C26: 20 | D26: Vilciņi | E26: 66 | F26: 72 | G26: 77 | H26: 66 | I26: 135 | J26: 105 | K26: 27 | L26: 103 | M26: 129 | N26: 63 | O26: 843 | P26: 11 min. 48,715 | Q26: 54 | R26: 13,124 sek. | T26: 11 | U26: 48 | V26: 715 | W26: 708.715
B27: 3 | C27: 21 | D27: Suituceļš | E27: 105 | F27: 60 | G27: 98 | H27: 64 | I27: 136 | J27: 101 | K27: 27 | L27: 91 | M27: 123 | N27: 35 | O27: 840 | P27: 07 min. 28,200 | Q27: 47 | R27: 09,536 sek. | T27: 07 | U27: 28 | V27: 200 | W27: 448.2
C28: 22 | D28: kristiansd | E28: 52 | F28: 118 | G28: 87 | H28: 41 | I28: 145 | J28: 75 | K28: 32 | L28: 122 | M28: 115 | N28: 50 | O28: 837 | P28: 10 min. 08,286 | Q28: 50 | R28: 12,166 sek. | T28: 10 | U28: 08 | V28: 286 | W28: 608.286
C29: 23 | D29: Melnstrādnieki | E29: 92 | F29: 90 | G29: 115 | H29: 44 | I29: 118 | J29: 97 | K29: 40 | L29: 92 | M29: 104 | N29: 45 | O29: 837 | P29: 07 min. 48,741 | Q29: 48 | R29: 09,765 sek. | T29: 07 | U29: 48 | V29: 741 | W29: 468.741
C30: 24 | D30: Topogrāfiskie zābaki | E30: 79 | F30: 107 | G30: 85 | H30: 22 | I30: 114 | J30: 102 | K30: 25 | L30: 115 | M30: 92 | N30: 60 | O30: 801 | P30: 12 min. 36,389 | Q30: 54 | R30: 14,007 sek. | T30: 12 | U30: 36 | V30: 389 | W30: 756.389
C31: 25 | D31: Aston Villa | E31: 79 | F31: 103 | G31: 110 | H31: 55 | I31: 96 | J31: 77 | K31: 37 | L31: 125 | M31: 66 | N31: 39 | O31: 787 | P31: 10 min. 28,318 | Q31: 48 | R31: 13,090 sek. | T31: 10 | U31: 28 | V31: 318 | W31: 628.318
C32: 26 | D32: Panzera vergi | E32: 72 | F32: 113 | G32: 96 | H32: 50 | I32: 110 | J32: 88 | K32: 21 | L32: 97 | M32: 91 | N32: 37 | O32: 775 | P32: 06 min. 35,221 | Q32: 42 | R32: 09,410 sek. | T32: 06 | U32: 35 | V32: 221 | W32: 395.221
C33: 27 | D33: Mūžīgā Pilsēta | E33: 74 | F33: 85 | G33: 86 | H33: 72 | I33: 115 | J33: 85 | K33: 61 | L33: 59 | M33: 90 | N33: 34 | O33: 761 | P33: 11 min. 05,185 | Q33: 50 | R33: 13,304 sek. | T33: 11 | U33: 05 | V33: 185 | W33: 665.185
C34: 28 | D34: Visu zinām | E34: 108 | F34: 80 | G34: 78 | H34: 68 | I34: 108 | J34: 53 | K34: 56 | L34: 103 | M34: 71 | N34: 30 | O34: 755 | P34: 11 min. 32,588 | Q34: 49 | R34: 14,134 sek. | T34: 11 | U34: 32 | V34: 588 | W34: 692.588
C35: 29 | D35: Maltas Desiņas | E35: 95 | F35: 74 | G35: 106 | H35: 45 | I35: 129 | J35: 43 | K35: 18 | L35: 107 | M35: 67 | N35: 61 | O35: 745 | P35: 08 min. 44,872 | Q35: 45 | R35: 11,664 sek. | T35: 08 | U35: 44 | V35: 872 | W35: 524.872
C36: 30 | D36: Hugis is back | E36: 63 | F36: 104 | G36: 91 | H36: 33 | I36: 83 | J36: 69 | K36: 79 | L36: 101 | M36: 75 | N36: 44 | O36: 742 | P36: 10 min. 03,709 | Q36: 47 | R36: 12,845 sek. | T36: 10 | U36: 03 | V36: 709 | W36: 603.709
C37: 31 | D37: Pāru Terapija | E37: 90 | F37: 121 | G37: 91 | H37: 30 | I37: 97 | J37: 88 | K37: -7 | L37: 90 | M37: 110 | N37: 22 | O37: 732 | P37: 09 min. 39,066 | Q37: 44 | R37: 13,161 sek. | T37: 09 | U37: 39 | V37: 066 | W37: 579.066
C38: 32 | D38: Saule20 | E38: 70 | F38: 92 | G38: 106 | H38: 44 | I38: 87 | J38: 68 | K38: -5 | L38: 143 | M38: 102 | N38: 11 | O38: 718 | P38: 07 min. 54,027 | Q38: 44 | R38: 10,773 sek. | T38: 07 | U38: 54 | V38: 027 | W38: 474.027
C39: 33 | D39: PAGASTMĀJA | E39: 77 | F39: 77 | G39: 83 | H39: 33 | I39: 79 | J39: 83 | K39: 19 | L39: 108 | M39: 103 | N39: 54 | O39: 716 | P39: 13 min. 12,331 | Q39: 52 | R39: 15,237 sek. | T39: 13 | U39: 12 | V39: 331 | W39: 792.331
C40: 34 | D40: Murmuļi | E40: 71 | F40: 111 | G40: 74 | H40: 48 | I40: 93 | J40: 22 | K40: -8 | L40: 109 | M40: 145 | N40: 43 | O40: 708 | P40: 09 min. 35,986 | Q40: 44 | R40: 13,091 sek. | T40: 09 | U40: 35 | V40: 986 | W40: 575.986
C41: 35 | D41: Komanda_IR | E41: 74 | F41: 74 | G41: 82 | H41: 27 | I41: 86 | J41: 89 | K41: 40 | L41: 102 | M41: 84 | N41: 39 | O41: 697 | P41: 10 min. 24,188 | Q41: 45 | R41: 13,871 sek. | T41: 10 | U41: 24 | V41: 188 | W41: 624.188
C42: 36 | D42: Raymz&co | E42: 60 | F42: 63 | G42: 103 | H42: 21 | I42: 128 | J42: 41 | K42: 35 | L42: 135 | M42: 94 | N42: 17 | O42: 697 | P42: 07 min. 03,154 | Q42: 41 | R42: 10,321 sek. | T42: 07 | U42: 03 | V42: 154 | W42: 423.154
C43: 37 | D43: Marinē divatā 2 | E43: 11 | F43: 112 | G43: 84 | H43: 64 | I43: 86 | J43: 82 | K43: 4 | L43: 101 | M43: 98 | N43: 50 | O43: 692 | P43: 07 min. 53,825 | Q43: 41 | R43: 11,296 sek. | T43: 07 | U43: 53 | V43: 825 | W43: 473.825
C44: 38 | D44: Kadrs33 | E44: 92 | F44: 101 | G44: 102 | H44: 22 | I44: 89 | J44: 86 | K44: 5 | L44: 66 | M44: 49 | N44: 72 | O44: 684 | P44: 07 min. 10,096 | Q44: 41 | R44: 10,490 sek. | T44: 07 | U44: 10 | V44: 096 | W44: 430.096
C45: 39 | D45: MEKA | E45: 86 | F45: 25 | G45: 43 | H45: 46 | I45: 99 | J45: 107 | K45: 37 | L45: 83 | M45: 92 | N45: 52 | O45: 670 | P45: 10 min. 54,618 | Q45: 46 | R45: 14,231 sek. | T45: 10 | U45: 54 | V45: 618 | W45: 654.618
C46: 40 | D46: Pampera noslēpums | E46: 30 | F46: 58 | G46: 67 | H46: 39 | I46: 133 | J46: 63 | K46: 32 | L46: 85 | M46: 87 | N46: 70 | O46: 664 | P46: 13 min. 41,973 | Q46: 49 | R46: 16,775 sek. | T46: 13 | U46: 41 | V46: 973 | W46: 821.973
C47: 41 | D47: PSP | E47: 58 | F47: 102 | G47: 59 | H47: 22 | I47: 109 | J47: 53 | K47: 46 | L47: 84 | M47: 56 | N47: 50 | O47: 639 | P47: 11 min. 22,534 | Q47: 43 | R47: 15,873 sek. | T47: 11 | U47: 22 | V47: 534 | W47: 682.534
C48: 42 | D48: Žorika garāža | E48: 66 | F48: 47 | G48: 75 | H48: 33 | I48: 86 | J48: 115 | K48: -26 | L48: 88 | M48: 136 | N48: 17 | O48: 637 | P48: 04 min. 34,680 | Q48: 34 | R48: 08,079 sek. | T48: 04 | U48: 34 | V48: 680 | W48: 274.68
C49: 43 | D49: Kaķumīļi | E49: 67 | F49: 93 | G49: 39 | H49: 43 | I49: 61 | J49: 111 | K49: 12 | L49: 72 | M49: 109 | N49: 21 | O49: 628 | P49: 08 min. 20,490 | Q49: 38 | R49: 13,171 sek. | T49: 08 | U49: 20 | V49: 490 | W49: 500.49
C50: 44 | D50: Šovakar Nepālī | E50: 82 | F50: 51 | G50: 48 | H50: 37 | I50: 102 | J50: 88 | K50: 2 | L50: 67 | M50: 80 | N50: 55 | O50: 612 | P50: 10 min. 47,772 | Q50: 43 | R50: 15,064 sek. | T50: 10 | U50: 47 | V50: 772 | W50: 647.772
C51: 45 | D51: LB | E51: 42 | F51: 53 | G51: 89 | H51: 60 | I51: 66 | J51: 46 | K51: 0 | L51: 119 | M51: 84 | N51: 45 | O51: 604 | P51: 07 min. 52,142 | Q51: 38 | R51: 12,425 sek. | T51: 07 | U51: 52 | V51: 142 | W51: 472.142
C52: 46 | D52: grūdējzvirbuļi | E52: 79 | F52: 101 | G52: 77 | H52: 67 | I52: 74 | J52: 52 | K52: -12 | L52: 82 | M52: 47 | N52: 29 | O52: 596 | P52: 12 min. 00,891 | Q52: 44 | R52: 16,384 sek. | T52: 12 | U52: 00 | V52: 891 | W52: 720.891
C53: 47 | D53: Odrija rullē | E53: 49 | F53: 105 | G53: 111 | H53: 38 | I53: 33 | J53: 21 | K53: 30 | L53: 64 | M53: 104 | N53: 39 | O53: 594 | P53: 06 min. 45,106 | Q53: 35 | R53: 11,574 sek. | T53: 06 | U53: 45 | V53: 106 | W53: 405.106
C54: 48 | D54: Ēnas | E54: 40 | F54: 70 | G54: 66 | H54: 21 | I54: 117 | J54: 76 | K54: 15 | L54: 66 | M54: 101 | N54: 20 | O54: 592 | P54: 07 min. 04,722 | Q54: 37 | R54: 11,479 sek. | T54: 07 | U54: 04 | V54: 722 | W54: 424.722
C55: 49 | D55: MARTA KRUSTIŅSONE | E55: 63 | F55: 114 | G55: 74 | H55: 20 | I55: 82 | J55: 43 | K55: 24 | L55: 61 | M55: 80 | N55: 28 | O55: 589 | P55: 08 min. 46,463 | Q55: 37 | R55: 14,229 sek. | T55: 08 | U55: 46 | V55: 463 | W55: 526.463
C56: 50 | D56: Close enough | E56: 56 | F56: 93 | G56: 65 | H56: 17 | I56: 61 | J56: 21 | K56: 5 | L56: 86 | M56: 111 | N56: 61 | O56: 576 | P56: 10 min. 34,676 | Q56: 39 | R56: 16,274 sek. | T56: 10 | U56: 34 | V56: 676 | W56: 634.676
C57: 51 | D57: Active | E57: 82 | F57: 82 | G57: 53 | H57: 17 | I57: 70 | J57: 93 | K57: 16 | L57: 59 | M57: 49 | N57: 49 | O57: 570 | P57: 11 min. 43,183 | Q57: 42 | R57: 16,742 sek. | T57: 11 | U57: 43 | V57: 183 | W57: 703.183
C58: 52 | D58: Kurwa Bober | E58: 43 | F58: 68 | G58: 106 | H58: 38 | I58: 103 | J58: 62 | K58: -22 | L58: 53 | M58: 87 | N58: 19 | O58: 557 | P58: 06 min. 39,027 | Q58: 35 | R58: 11,401 sek. | T58: 06 | U58: 39 | V58: 027 | W58: 399.027
C59: 53 | D59: Dilles | E59: 46 | F59: 94 | G59: 53 | H59: 21 | I59: 72 | J59: 71 | K59: -11 | L59: 72 | M59: 114 | N59: 6 | O59: 538 | P59: 09 min. 18,961 | Q59: 36 | R59: 15,527 sek. | T59: 09 | U59: 18 | V59: 961 | W59: 558.961
C60: 54 | D60: Bebri liepā | E60: 39 | F60: 71 | G60: 72 | H60: 38 | I60: 22 | J60: 69 | K60: 22 | L60: 101 | M60: 81 | N60: 20 | O60: 535 | P60: 10 min. 22,159 | Q60: 38 | R60: 16,373 sek. | T60: 10 | U60: 22 | V60: 159 | W60: 622.159
C61: 55 | D61: Agnusdei | E61: 83 | F61: 30 | G61: 51 | H61: 40 | I61: 141 | J61: 37 | K61: 11 | L61: 20 | M61: 80 | N61: 23 | O61: 516 | P61: 07 min. 11,017 | Q61: 33 | R61: 13,061 sek. | T61: 07 | U61: 11 | V61: 017 | W61: 431.017
C62: 56 | D62: Swan | E62: 64 | F62: 71 | G62: 22 | H62: 45 | I62: 94 | J62: 81 | K62: -31 | L62: 28 | M62: 72 | N62: 68 | O62: 514 | P62: 09 min. 28,286 | Q62: 36 | R62: 15,786 sek. | T62: 09 | U62: 28 | V62: 286 | W62: 568.286
C63: 57 | D63: Gribu ceļot.lv | E63: 50 | F63: 63 | G63: 60 | H63: 53 | I63: 61 | J63: 33 | K63: -10 | L63: 82 | M63: 84 | N63: 34 | O63: 510 | P63: 06 min. 44,658 | Q63: 32 | R63: 12,646 sek. | T63: 06 | U63: 44 | V63: 658 | W63: 404.658
C64: 58 | D64: MIKO | E64: 43 | F64: 55 | G64: 60 | H64: 20 | I64: 76 | J64: 39 | K64: 24 | L64: 44 | M64: 106 | N64: 38 | O64: 505 | P64: 12 min. 22,434 | Q64: 41 | R64: 18,108 sek. | T64: 12 | U64: 22 | V64: 434 | W64: 742.434
C65: 59 | D65: LOTES Co | E65: 62 | F65: 51 | G65: 53 | H65: 15 | I65: 52 | J65: 72 | K65: 28 | L65: 61 | M65: 67 | N65: 35 | O65: 496 | P65: 11 min. 10,069 | Q65: 38 | R65: 17,633 sek. | T65: 11 | U65: 10 | V65: 069 | W65: 670.069
C66: 60 | D66: Skaideītes Karte | E66: 51 | F66: 59 | G66: 73 | H66: 16 | I66: 36 | J66: 47 | K66: 28 | L66: 34 | M66: 60 | N66: 92 | O66: 496 | P66: 08 min. 53,493 | Q66: 36 | R66: 14,819 sek. | T66: 08 | U66: 53 | V66: 493 | W66: 533.493
C67: 61 | D67: Stams | E67: 79 | F67: 48 | G67: 101 | H67: 25 | I67: 79 | J67: 36 | K67: -19 | L67: 36 | M67: 90 | N67: 9 | O67: 484 | P67: 07 min. 51,292 | Q67: 35 | R67: 13,465 sek. | T67: 07 | U67: 51 | V67: 292 | W67: 471.292
C68: 62 | D68: Jirgens Klops | E68: 48 | F68: 36 | G68: 57 | H68: 11 | I68: 75 | J68: 54 | K68: -10 | L68: 96 | M68: 54 | N68: 53 | O68: 474 | P68: 08 min. 36,529 | Q68: 35 | R68: 14,758 sek. | T68: 08 | U68: 36 | V68: 529 | W68: 516.529
C69: 63 | D69: Kriminālā Jēkabiela | E69: 50 | F69: 31 | G69: 87 | H69: 47 | I69: 53 | J69: 70 | K69: 35 | L69: 32 | M69: 41 | N69: 26 | O69: 472 | P69: 08 min. 06,084 | Q69: 34 | R69: 14,297 sek. | T69: 08 | U69: 06 | V69: 084 | W69: 486.084
C70: 64 | D70: VERA | E70: 0 | F70: 95 | G70: 64 | H70: 43 | I70: 60 | J70: 50 | K70: 55 | L70: 65 | M70: 40 | N70: 0 | O70: 472 | P70: 05 min. 45,708 | Q70: 28 | R70: 12,347 sek. | T70: 05 | U70: 45 | V70: 708 | W70: 345.708
C71: 65 | D71: Super kosmoss | E71: 44 | F71: 62 | G71: 76 | H71: 0 | I71: 60 | J71: 80 | K71: -31 | L71: 84 | M71: 81 | N71: 13 | O71: 469 | P71: 07 min. 18,832 | Q71: 32 | R71: 13,714 sek. | T71: 07 | U71: 18 | V71: 832 | W71: 438.832
C72: 66 | D72: Yuki | E72: 49 | F72: 42 | G72: 72 | H72: 44 | I72: 27 | J72: 38 | K72: 9 | L72: 67 | M72: 75 | N72: 45 | O72: 468 | P72: 10 min. 15,704 | Q72: 37 | R72: 16,641 sek. | T72: =LEFT(P72,2) -> 10 | U72: =MID(P72,9,2) -> 15 | V72: =RIGHT(P72,3) -> 704 | W72: =LEFT(P72,2)*60+MID(P72,9,2)+RIGHT(P72,3)/1000 -> 615.704
C73: 67 | D73: MaZulis | E73: 40 | F73: 53 | G73: 76 | H73: 18 | I73: 23 | J73: 39 | K73: 20 | L73: 103 | M73: 47 | N73: 31 | O73: 450 | P73: 09 min. 54,277 | Q73: 34 | R73: 17,479 sek. | T73: 09 | U73: 54 | V73: 277 | W73: 594.277
C74: 68 | D74: Minnie | E74: 41 | F74: 8 | G74: 73 | H74: 22 | I74: 47 | J74: 54 | K74: -3 | L74: 72 | M74: 76 | N74: 47 | O74: 437 | P74: 07 min. 38,046 | Q74: 32 | R74: 14,314 sek. | T74: 07 | U74: 38 | V74: 046 | W74: 458.046
C75: 69 | D75: Mušļi | E75: 58 | F75: 52 | G75: 98 | H75: 39 | I75: 24 | J75: 20 | K75: -3 | L75: 41 | M75: 88 | N75: 20 | O75: 437 | P75: 05 min. 56,097 | Q75: 28 | R75: 12,718 sek. | T75: 05 | U75: 56 | V75: 097 | W75: 356.097
C76: 70 | D76: Drain Bamage | E76: 16 | F76: 84 | G76: 86 | H76: 26 | I76: 24 | J76: 19 | K76: -6 | L76: 94 | M76: 52 | N76: 30 | O76: 425 | P76: 05 min. 14,132 | Q76: 26 | R76: 12,082 sek. | T76: 05 | U76: 14 | V76: 132 | W76: 314.132
C77: 71 | D77: Pļavnieku gang | E77: 40 | F77: 36 | G77: 42 | H77: 24 | I77: 72 | J77: 47 | K77: 25 | L77: 28 | M77: 74 | N77: 27 | O77: 415 | P77: 08 min. 40,358 | Q77: 32 | R77: 16,261 sek. | T77: 08 | U77: 40 | V77: 358 | W77: 520.358
C78: 72 | D78: Lilii | E78: 12 | F78: 62 | G78: 82 | H78: 0 | I78: 21 | J78: 37 | K78: 16 | L78: 85 | M78: 52 | N78: 45 | O78: 412 | P78: 06 min. 39,704 | Q78: 29 | R78: 16,982 sek. | T78: 06 | U78: 39 | V78: 704 | W78: 399.704
C79: 73 | D79: Mārupes krītiņi | E79: 16 | F79: 31 | G79: 76 | H79: 0 | I79: 39 | J79: 78 | K79: -27 | L79: 70 | M79: 95 | N79: 34 | O79: 412 | P79: 06 min. 16,445 | Q79: 29 | R79: 12,981 sek. | T79: 06 | U79: 16 | V79: 445 | W79: 376.445
C80: 74 | D80: Smilšu rukši | E80: 50 | F80: 86 | G80: 58 | H80: 23 | I80: 48 | J80: 42 | K80: -5 | L80: 44 | M80: 35 | N80: 29 | O80: 410 | P80: 11 min. 17,188 | Q80: 36 | R80: 18,811 sek. | T80: 11 | U80: 17 | V80: 188 | W80: 677.188
C81: 75 | D81: Guchi | E81: 15 | F81: 51 | G81: 49 | H81: 12 | I81: 47 | J81: 41 | K81: 19 | L81: 70 | M81: 79 | N81: 16 | O81: 399 | P81: 06 min. 43,161 | Q81: 28 | R81: 14,399 sek. | T81: 06 | U81: 43 | V81: 161 | W81: 403.161
C82: 76 | D82: Haizivis uzvalkos | E82: 27 | F82: 51 | G82: 43 | H82: 55 | I82: 72 | J82: 51 | K82: -20 | L82: 43 | M82: 37 | N82: 19 | O82: 378 | P82: 09 min. 30,069 | Q82: 32 | R82: 17,815 sek. | T82: 09 | U82: 30 | V82: 069 | W82: 570.069
C83: 77 | D83: Yu | E83: 7 | F83: 74 | G83: 46 | H83: 17 | I83: 43 | J83: 45 | K83: -47 | L83: 43 | M83: 84 | N83: 39 | O83: 351 | P83: 03 min. 45,201 | Q83: 23 | R83: 09,791 sek. | T83: 03 | U83: 45 | V83: 201 | W83: 225.201
C84: 78 | D84: Jauni un bagāti un laimīgi | E84: 51 | F84: 44 | G84: 57 | H84: 0 | I84: 30 | J84: 28 | K84: -9 | L84: 47 | M84: 60 | N84: 37 | O84: 345 | P84: 07 min. 03,151 | Q84: 26 | R84: 16,275 sek. | T84: 07 | U84: 03 | V84: 151 | W84: 423.151
C85: 79 | D85: Raiens | E85: 45 | F85: 30 | G85: 60 | H85: 11 | I85: 32 | J85: 31 | K85: -14 | L85: 44 | M85: 74 | N85: 21 | O85: 334 | P85: 07 min. 19,662 | Q85: 27 | R85: 16,284 sek. | T85: 07 | U85: 19 | V85: 662 | W85: 439.662
C86: 80 | D86: Dora | E86: 61 | F86: 40 | G86: 85 | H86: 19 | I86: 40 | J86: 22 | K86: -13 | L86: 22 | M86: 57 | N86: 0 | O86: 333 | P86: 03 min. 16,537 | Q86: 22 | R86: 08,934 sek. | T86: 03 | U86: 16 | V86: 537 | W86: 196.537
C87: 81 | D87: Vīnoga pelikānā | E87: 0 | F87: 0 | G87: 59 | H87: 105 | I87: 20 | J87: 33 | K87: -10 | L87: 8 | M87: 83 | N87: 23 | O87: 321 | P87: 03 min. 01,452 | Q87: 18 | R87: 10,081 sek. | T87: 03 | U87: 01 | V87: 452 | W87: 181.452
C88: 82 | D88: YoungOger | E88: 20 | F88: 50 | G88: 49 | H88: 4 | I88: 35 | J88: 41 | K88: -46 | L88: 85 | M88: 0 | N88: 41 | O88: 279 | P88: 06 min. 51,101 | Q88: 27 | R88: 15,226 sek. | T88: 06 | U88: 51 | V88: 101 | W88: 411.101
C89: 83 | D89: ANNIŅMUIŽA | E89: 50 | F89: 32 | G89: 37 | H89: 10 | I89: 41 | J89: 44 | K89: -15 | L89: 15 | M89: 42 | N89: 0 | O89: 256 | P89: 07 min. 30,624 | Q89: 23 | R89: 19,592 sek. | T89: 07 | U89: 30 | V89: 624 | W89: 450.624
C90: 84 | D90: kūciņa. | E90: 0 | F90: 0 | G90: 0 | H90: 0 | I90: 0 | J90: 0 | K90: 0 | L90: 92 | M90: 96 | N90: 39 | O90: 227 | P90: 02 min. 17,590 | Q90: 11 | R90: 12,508 sek. | T90: 02 | U90: 17 | V90: 590 | W90: 137.59

Sheet 1-50
C2: =tabula!C2 -> "Ģeogrāfijas/tūrisma viktorīna" (tiešsaistē / vebinārā) | 2024.gada 26.oktobris
B3: Grupa | C3: =tabula!C3 -> # | D3: =tabula!D3 -> Dalībnieks | Raunds | Tēma | Max punkti raundā (bez bonusiem) | E3: =tabula!E3 -> 1 | F3: =tabula!F3 -> 2 | G3: =tabula!G3 -> 3 | H3: =tabula!H3 -> 4 | I3: =tabula!I3 -> 5 | J3: =tabula!J3 -> 6 | K3: =tabula!K3 -> 7 | L3: =tabula!L3 -> 8 | M3: =tabula!M3 -> 9 | N3: =tabula!N3 -> 10 | O3: =tabula!O3 -> KOPĀ | P3: =tabula!P3 -> Laiks kopā uz pareizajām atbildēm | Q3: =tabula!Q3 -> Pareizās atbildes (max 68) | R3: =tabula!R3 -> Vid.laiks uz 1 pareizo atb.
E4: =tabula!E4 -> Pavediens | F4: =tabula!F4 -> Divas atbildes | G4: =tabula!G4 -> Ekspresis | H4: =tabula!H4 -> Burtu mīkla | I4: =tabula!I4 -> Ķēde | J4: =tabula!J4 -> Latvija | K4: =tabula!K4 -> Risks: atpazīsti objektu | L4: =tabula!L4 -> Kas kopīgs? | M4: =tabula!M4 -> Liekais pazūd ārpus kastes | N4: =tabula!N4 -> Audio
E5: =tabula!E5 -> 150 | F5: =tabula!F5 -> 180 | G5: =tabula!G5 -> 180 | H5: =tabula!H5 -> 180 | I5: 175 | J5: =tabula!J5 -> 150 | K5: =tabula!K5 -> 120 | L5: =tabula!L5 -> 180 | M5: =tabula!M5 -> 180 | N5: =tabula!N5 -> 150 | O5: =tabula!O5 -> 1645
D6: =tabula!D6 -> Vidējie rādītāji | E6: =tabula!E6 -> 64.9 | F6: =tabula!F6 -> 77.9 | G6: =tabula!G6 -> 79.1 | H6: =tabula!H6 -> 43.6 | I6: =tabula!I6 -> 87.3 | J6: =tabula!J6 -> 68.1 | K6: =tabula!K6 -> 15.3 | L6: =tabula!L6 -> 85.4 | M6: =tabula!M6 -> 90.5 | N6: =tabula!N6 -> 41.3 | O6: =tabula!O6 -> 653.3
B7: 3 | C7: =tabula!C7 -> 1 | D7: =tabula!D7 -> Kurzemnieks | E7: =tabula!E7 -> 116 | F7: =tabula!F7 -> 146 | G7: =tabula!G7 -> 143 | H7: =tabula!H7 -> 84 | I7: =tabula!I7 -> 140 | J7: =tabula!J7 -> 143 | K7: =tabula!K7 -> 28 | L7: =tabula!L7 -> 156 | M7: =tabula!M7 -> 138 | N7: =tabula!N7 -> 73 | O7: =tabula!O7 -> 1167 | P7: =tabula!P7 -> 07 min. 41,434 | Q7: =tabula!Q7 -> 60 | R7: =tabula!R7 -> 07,691 sek.
B8: 1 | C8: =tabula!C8 -> 2 | D8: =tabula!D8 -> Āreče | E8: =tabula!E8 -> 107 | F8: =tabula!F8 -> 126 | G8: =tabula!G8 -> 109 | H8: =tabula!H8 -> 103 | I8: =tabula!I8 -> 161 | J8: =tabula!J8 -> 120 | K8: =tabula!K8 -> 68 | L8: =tabula!L8 -> 127 | M8: =tabula!M8 -> 168 | N8: =tabula!N8 -> 74 | O8: =tabula!O8 -> 1163 | P8: =tabula!P8 -> 05 min. 57,442 | Q8: =tabula!Q8 -> 56 | R8: =tabula!R8 -> 06,383 sek.
B9: 1 | C9: =tabula!C9 -> 3 | D9: =tabula!D9 -> 8kb24 | E9: =tabula!E9 -> 107 | F9: =tabula!F9 -> 121 | G9: =tabula!G9 -> 138 | H9: =tabula!H9 -> 100 | I9: =tabula!I9 -> 137 | J9: =tabula!J9 -> 110 | K9: =tabula!K9 -> 56 | L9: =tabula!L9 -> 165 | M9: =tabula!M9 -> 119 | N9: =tabula!N9 -> 57 | O9: =tabula!O9 -> 1110 | P9: =tabula!P9 -> 08 min. 13,231 | Q9: =tabula!Q9 -> 58 | R9: =tabula!R9 -> 08,504 sek.
B10: 3 | C10: =tabula!C10 -> 4 | D10: =tabula!D10 -> Bunkurs_13 | E10: =tabula!E10 -> 110 | F10: =tabula!F10 -> 108 | G10: =tabula!G10 -> 114 | H10: =tabula!H10 -> 111 | I10: =tabula!I10 -> 159 | J10: =tabula!J10 -> 120 | K10: =tabula!K10 -> 17 | L10: =tabula!L10 -> 119 | M10: =tabula!M10 -> 144 | N10: =tabula!N10 -> 96 | O10: =tabula!O10 -> 1098 | P10: =tabula!P10 -> 06 min. 28,270 | Q10: =tabula!Q10 -> 55 | R10: =tabula!R10 -> 07,059 sek.
B11: 1 | C11: =tabula!C11 -> 5 | D11: =tabula!D11 -> Egle | E11: =tabula!E11 -> 115 | F11: =tabula!F11 -> 115 | G11: =tabula!G11 -> 96 | H11: =tabula!H11 -> 91 | I11: =tabula!I11 -> 143 | J11: =tabula!J11 -> 121 | K11: =tabula!K11 -> 14 | L11: =tabula!L11 -> 151 | M11: =tabula!M11 -> 122 | N11: =tabula!N11 -> 55 | O11: =tabula!O11 -> 1023 | P11: =tabula!P11 -> 08 min. 40,743 | Q11: =tabula!Q11 -> 55 | R11: =tabula!R11 -> 09,468 sek.
B12: 3 | C12: =tabula!C12 -> 6 | D12: =tabula!D12 -> LFG jeb LegFeelsGood! | E12: =tabula!E12 -> 78 | F12: =tabula!F12 -> 134 | G12: =tabula!G12 -> 98 | H12: =tabula!H12 -> 113 | I12: =tabula!I12 -> 111 | J12: =tabula!J12 -> 81 | K12: =tabula!K12 -> 17 | L12: =tabula!L12 -> 139 | M12: =tabula!M12 -> 129 | N12: =tabula!N12 -> 102 | O12: =tabula!O12 -> 1002 | P12: =tabula!P12 -> 07 min. 04,402 | Q12: =tabula!Q12 -> 53 | R12: =tabula!R12 -> 08,008 sek.
B13: 1 | C13: =tabula!C13 -> 7 | D13: =tabula!D13 -> Okavango | E13: =tabula!E13 -> 118 | F13: =tabula!F13 -> 127 | G13: =tabula!G13 -> 102 | H13: =tabula!H13 -> 98 | I13: =tabula!I13 -> 152 | J13: =tabula!J13 -> 111 | K13: =tabula!K13 -> 12 | L13: =tabula!L13 -> 132 | M13: =tabula!M13 -> 114 | N13: =tabula!N13 -> 35 | O13: =tabula!O13 -> 1001 | P13: =tabula!P13 -> 05 min. 52,906 | Q13: =tabula!Q13 -> 50 | R13: =tabula!R13 -> 07,058 sek.
B14: 1 | C14: =tabula!C14 -> 8 | D14: =tabula!D14 -> Miksiņš | E14: =tabula!E14 -> 89 | F14: =tabula!F14 -> 106 | G14: =tabula!G14 -> 118 | H14: =tabula!H14 -> 69 | I14: =tabula!I14 -> 150 | J14: =tabula!J14 -> 115 | K14: =tabula!K14 -> 29 | L14: =tabula!L14 -> 147 | M14: =tabula!M14 -> 125 | N14: =tabula!N14 -> 46 | O14: =tabula!O14 -> 994 | P14: =tabula!P14 -> 11 min. 20,923 | Q14: =tabula!Q14 -> 59 | R14: =tabula!R14 -> 11,541 sek.
B15: 2 | C15: =tabula!C15 -> 9 | D15: =tabula!D15 -> Imantā futbola nav | E15: =tabula!E15 -> 105 | F15: =tabula!F15 -> 140 | G15: =tabula!G15 -> 84 | H15: =tabula!H15 -> 100 | I15: =tabula!I15 -> 162 | J15: =tabula!J15 -> 77 | K15: =tabula!K15 -> 35 | L15: =tabula!L15 -> 90 | M15: =tabula!M15 -> 120 | N15: =tabula!N15 -> 56 | O15: =tabula!O15 -> 969 | P15: =tabula!P15 -> 06 min. 40,776 | Q15: =tabula!Q15 -> 49 | R15: =tabula!R15 -> 08,179 sek.
B16: 3 | C16: =tabula!C16 -> 10 | D16: =tabula!D16 -> Rupuči, turās! | E16: =tabula!E16 -> 117 | F16: =tabula!F16 -> 66 | G16: =tabula!G16 -> 109 | H16: =tabula!H16 -> 76 | I16: =tabula!I16 -> 112 | J16: =tabula!J16 -> 66 | K16: =tabula!K16 -> 45 | L16: =tabula!L16 -> 112 | M16: =tabula!M16 -> 175 | N16: =tabula!N16 -> 69 | O16: =tabula!O16 -> 947 | P16: =tabula!P16 -> 07 min. 09,830 | Q16: =tabula!Q16 -> 50 | R16: =tabula!R16 -> 08,597 sek.
B17: 2 | C17: =tabula!C17 -> 11 | D17: =tabula!D17 -> Divi cilvēki | E17: =tabula!E17 -> 93 | F17: =tabula!F17 -> 92 | G17: =tabula!G17 -> 81 | H17: =tabula!H17 -> 72 | I17: =tabula!I17 -> 154 | J17: =tabula!J17 -> 102 | K17: =tabula!K17 -> 37 | L17: =tabula!L17 -> 147 | M17: =tabula!M17 -> 90 | N17: =tabula!N17 -> 67 | O17: =tabula!O17 -> 935 | P17: =tabula!P17 -> 09 min. 34,768 | Q17: =tabula!Q17 -> 52 | R17: =tabula!R17 -> 11,053 sek.
B18: 2 | C18: =tabula!C18 -> 12 | D18: =tabula!D18 -> Grūdmūsvelcjūs | E18: =tabula!E18 -> 101 | F18: =tabula!F18 -> 108 | G18: =tabula!G18 -> 116 | H18: =tabula!H18 -> 55 | I18: =tabula!I18 -> 142 | J18: =tabula!J18 -> 59 | K18: =tabula!K18 -> 27 | L18: =tabula!L18 -> 94 | M18: =tabula!M18 -> 149 | N18: =tabula!N18 -> 47 | O18: =tabula!O18 -> 898 | P18: =tabula!P18 -> 05 min. 38,193 | Q18: =tabula!Q18 -> 46 | R18: =tabula!R18 -> 07,352 sek.
B19: 2 | C19: =tabula!C19 -> 13 | D19: =tabula!D19 -> Dunikas bridēji | E19: =tabula!E19 -> 92 | F19: =tabula!F19 -> 178 | G19: =tabula!G19 -> 105 | H19: =tabula!H19 -> 44 | I19: =tabula!I19 -> 115 | J19: =tabula!J19 -> 99 | K19: =tabula!K19 -> 39 | L19: =tabula!L19 -> 92 | M19: =tabula!M19 -> 117 | N19: =tabula!N19 -> 14 | O19: =tabula!O19 -> 895 | P19: =tabula!P19 -> 05 min. 52,132 | Q19: =tabula!Q19 -> 45 | R19: =tabula!R19 -> 07,825 sek.
B20: 3 | C20: =tabula!C20 -> 14 | D20: =tabula!D20 -> lielhercogs | E20: =tabula!E20 -> 103 | F20: =tabula!F20 -> 147 | G20: =tabula!G20 -> 91 | H20: =tabula!H20 -> 71 | I20: =tabula!I20 -> 115 | J20: =tabula!J20 -> 49 | K20: =tabula!K20 -> 44 | L20: =tabula!L20 -> 124 | M20: =tabula!M20 -> 86 | N20: =tabula!N20 -> 56 | O20: =tabula!O20 -> 886 | P20: =tabula!P20 -> 08 min. 13,375 | Q20: =tabula!Q20 -> 49 | R20: =tabula!R20 -> 10,069 sek.
B21: 1 | C21: =tabula!C21 -> 15 | D21: =tabula!D21 -> Virsskaņas alus iznīcinātājs | E21: =tabula!E21 -> 92 | F21: =tabula!F21 -> 96 | G21: =tabula!G21 -> 98 | H21: =tabula!H21 -> 24 | I21: =tabula!I21 -> 103 | J21: =tabula!J21 -> 90 | K21: =tabula!K21 -> 49 | L21: =tabula!L21 -> 78 | M21: =tabula!M21 -> 163 | N21: =tabula!N21 -> 87 | O21: =tabula!O21 -> 880 | P21: =tabula!P21 -> 10 min. 16,249 | Q21: =tabula!Q21 -> 52 | R21: =tabula!R21 -> 11,851 sek.
B22: 3 | C22: =tabula!C22 -> 16 | D22: =tabula!D22 -> Mazkaloriju biskvīts | E22: =tabula!E22 -> 102 | F22: =tabula!F22 -> 75 | G22: =tabula!G22 -> 82 | H22: =tabula!H22 -> 99 | I22: =tabula!I22 -> 91 | J22: =tabula!J22 -> 86 | K22: =tabula!K22 -> 23 | L22: =tabula!L22 -> 128 | M22: =tabula!M22 -> 121 | N22: =tabula!N22 -> 62 | O22: =tabula!O22 -> 869 | P22: =tabula!P22 -> 12 min. 49,787 | Q22: =tabula!Q22 -> 57 | R22: =tabula!R22 -> 13,505 sek.
B23: 3 | C23: =tabula!C23 -> 17 | D23: =tabula!D23 -> Poga | E23: =tabula!E23 -> 109 | F23: =tabula!F23 -> 76 | G23: =tabula!G23 -> 78 | H23: =tabula!H23 -> 56 | I23: =tabula!I23 -> 108 | J23: =tabula!J23 -> 112 | K23: =tabula!K23 -> 62 | L23: =tabula!L23 -> 96 | M23: =tabula!M23 -> 115 | N23: =tabula!N23 -> 57 | O23: =tabula!O23 -> 869 | P23: =tabula!P23 -> 11 min. 03,462 | Q23: =tabula!Q23 -> 52 | R23: =tabula!R23 -> 12,759 sek.
B24: 3 | C24: =tabula!C24 -> 18 | D24: =tabula!D24 -> Jaunanglijas gliemju zupa | E24: =tabula!E24 -> 99 | F24: =tabula!F24 -> 60 | G24: =tabula!G24 -> 89 | H24: =tabula!H24 -> 84 | I24: =tabula!I24 -> 131 | J24: =tabula!J24 -> 120 | K24: =tabula!K24 -> 32 | L24: =tabula!L24 -> 104 | M24: =tabula!M24 -> 100 | N24: =tabula!N24 -> 46 | O24: =tabula!O24 -> 865 | P24: =tabula!P24 -> 07 min. 48,286 | Q24: =tabula!Q24 -> 48 | R24: =tabula!R24 -> 09,756 sek.
B25: 1 | C25: =tabula!C25 -> 19 | D25: =tabula!D25 -> Viesis | E25: =tabula!E25 -> 70 | F25: =tabula!F25 -> 108 | G25: =tabula!G25 -> 90 | H25: =tabula!H25 -> 60 | I25: =tabula!I25 -> 153 | J25: =tabula!J25 -> 85 | K25: =tabula!K25 -> 27 | L25: =tabula!L25 -> 103 | M25: =tabula!M25 -> 102 | N25: =tabula!N25 -> 47 | O25: =tabula!O25 -> 845 | P25: =tabula!P25 -> 08 min. 31,187 | Q25: =tabula!Q25 -> 48 | R25: =tabula!R25 -> 10,650 sek.
B26: 1 | C26: =tabula!C26 -> 20 | D26: =tabula!D26 -> Vilciņi | E26: =tabula!E26 -> 66 | F26: =tabula!F26 -> 72 | G26: =tabula!G26 -> 77 | H26: =tabula!H26 -> 66 | I26: =tabula!I26 -> 135 | J26: =tabula!J26 -> 105 | K26: =tabula!K26 -> 27 | L26: =tabula!L26 -> 103 | M26: =tabula!M26 -> 129 | N26: =tabula!N26 -> 63 | O26: =tabula!O26 -> 843 | P26: =tabula!P26 -> 11 min. 48,715 | Q26: =tabula!Q26 -> 54 | R26: =tabula!R26 -> 13,124 sek.
B27: 3 | C27: =tabula!C27 -> 21 | D27: =tabula!D27 -> Suituceļš | E27: =tabula!E27 -> 105 | F27: =tabula!F27 -> 60 | G27: =tabula!G27 -> 98 | H27: =tabula!H27 -> 64 | I27: =tabula!I27 -> 136 | J27: =tabula!J27 -> 101 | K27: =tabula!K27 -> 27 | L27: =tabula!L27 -> 91 | M27: =tabula!M27 -> 123 | N27: =tabula!N27 -> 35 | O27: =tabula!O27 -> 840 | P27: =tabula!P27 -> 07 min. 28,200 | Q27: =tabula!Q27 -> 47 | R27: =tabula!R27 -> 09,536 sek.
C28: =tabula!C28 -> 22 | D28: =tabula!D28 -> kristiansd | E28: =tabula!E28 -> 52 | F28: =tabula!F28 -> 118 | G28: =tabula!G28 -> 87 | H28: =tabula!H28 -> 41 | I28: =tabula!I28 -> 145 | J28: =tabula!J28 -> 75 | K28: =tabula!K28 -> 32 | L28: =tabula!L28 -> 122 | M28: =tabula!M28 -> 115 | N28: =tabula!N28 -> 50 | O28: =tabula!O28 -> 837 | P28: =tabula!P28 -> 10 min. 08,286 | Q28: =tabula!Q28 -> 50 | R28: =tabula!R28 -> 12,166 sek.
C29: =tabula!C29 -> 23 | D29: =tabula!D29 -> Melnstrādnieki | E29: =tabula!E29 -> 92 | F29: =tabula!F29 -> 90 | G29: =tabula!G29 -> 115 | H29: =tabula!H29 -> 44 | I29: =tabula!I29 -> 118 | J29: =tabula!J29 -> 97 | K29: =tabula!K29 -> 40 | L29: =tabula!L29 -> 92 | M29: =tabula!M29 -> 104 | N29: =tabula!N29 -> 45 | O29: =tabula!O29 -> 837 | P29: =tabula!P29 -> 07 min. 48,741 | Q29: =tabula!Q29 -> 48 | R29: =tabula!R29 -> 09,765 sek.
C30: =tabula!C30 -> 24 | D30: =tabula!D30 -> Topogrāfiskie zābaki | E30: =tabula!E30 -> 79 | F30: =tabula!F30 -> 107 | G30: =tabula!G30 -> 85 | H30: =tabula!H30 -> 22 | I30: =tabula!I30 -> 114 | J30: =tabula!J30 -> 102 | K30: =tabula!K30 -> 25 | L30: =tabula!L30 -> 115 | M30: =tabula!M30 -> 92 | N30: =tabula!N30 -> 60 | O30: =tabula!O30 -> 801 | P30: =tabula!P30 -> 12 min. 36,389 | Q30: =tabula!Q30 -> 54 | R30: =tabula!R30 -> 14,007 sek.
C31: =tabula!C31 -> 25 | D31: =tabula!D31 -> Aston Villa | E31: =tabula!E31 -> 79 | F31: =tabula!F31 -> 103 | G31: =tabula!G31 -> 110 | H31: =tabula!H31 -> 55 | I31: =tabula!I31 -> 96 | J31: =tabula!J31 -> 77 | K31: =tabula!K31 -> 37 | L31: =tabula!L31 -> 125 | M31: =tabula!M31 -> 66 | N31: =tabula!N31 -> 39 | O31: =tabula!O31 -> 787 | P31: =tabula!P31 -> 10 min. 28,318 | Q31: =tabula!Q31 -> 48 | R31: =tabula!R31 -> 13,090 sek.
C32: =tabula!C32 -> 26 | D32: =tabula!D32 -> Panzera vergi | E32: =tabula!E32 -> 72 | F32: =tabula!F32 -> 113 | G32: =tabula!G32 -> 96 | H32: =tabula!H32 -> 50 | I32: =tabula!I32 -> 110 | J32: =tabula!J32 -> 88 | K32: =tabula!K32 -> 21 | L32: =tabula!L32 -> 97 | M32: =tabula!M32 -> 91 | N32: =tabula!N32 -> 37 | O32: =tabula!O32 -> 775 | P32: =tabula!P32 -> 06 min. 35,221 | Q32: =tabula!Q32 -> 42 | R32: =tabula!R32 -> 09,410 sek.
C33: =tabula!C33 -> 27 | D33: =tabula!D33 -> Mūžīgā Pilsēta | E33: =tabula!E33 -> 74 | F33: =tabula!F33 -> 85 | G33: =tabula!G33 -> 86 | H33: =tabula!H33 -> 72 | I33: =tabula!I33 -> 115 | J33: =tabula!J33 -> 85 | K33: =tabula!K33 -> 61 | L33: =tabula!L33 -> 59 | M33: =tabula!M33 -> 90 | N33: =tabula!N33 -> 34 | O33: =tabula!O33 -> 761 | P33: =tabula!P33 -> 11 min. 05,185 | Q33: =tabula!Q33 -> 50 | R33: =tabula!R33 -> 13,304 sek.
C34: =tabula!C34 -> 28 | D34: =tabula!D34 -> Visu zinām | E34: =tabula!E34 -> 108 | F34: =tabula!F34 -> 80 | G34: =tabula!G34 -> 78 | H34: =tabula!H34 -> 68 | I34: =tabula!I34 -> 108 | J34: =tabula!J34 -> 53 | K34: =tabula!K34 -> 56 | L34: =tabula!L34 -> 103 | M34: =tabula!M34 -> 71 | N34: =tabula!N34 -> 30 | O34: =tabula!O34 -> 755 | P34: =tabula!P34 -> 11 min. 32,588 | Q34: =tabula!Q34 -> 49 | R34: =tabula!R34 -> 14,134 sek.
C35: =tabula!C35 -> 29 | D35: =tabula!D35 -> Maltas Desiņas | E35: =tabula!E35 -> 95 | F35: =tabula!F35 -> 74 | G35: =tabula!G35 -> 106 | H35: =tabula!H35 -> 45 | I35: =tabula!I35 -> 129 | J35: =tabula!J35 -> 43 | K35: =tabula!K35 -> 18 | L35: =tabula!L35 -> 107 | M35: =tabula!M35 -> 67 | N35: =tabula!N35 -> 61 | O35: =tabula!O35 -> 745 | P35: =tabula!P35 -> 08 min. 44,872 | Q35: =tabula!Q35 -> 45 | R35: =tabula!R35 -> 11,664 sek.
C36: =tabula!C36 -> 30 | D36: 2-22 | E36: =tabula!E36 -> 63 | F36: =tabula!F36 -> 104 | G36: =tabula!G36 -> 91 | H36: =tabula!H36 -> 33 | I36: =tabula!I36 -> 83 | J36: =tabula!J36 -> 69 | K36: =tabula!K36 -> 79 | L36: =tabula!L36 -> 101 | M36: =tabula!M36 -> 75 | N36: =tabula!N36 -> 44 | O36: =tabula!O36 -> 742 | P36: =tabula!P36 -> 10 min. 03,709 | Q36: =tabula!Q36 -> 47 | R36: =tabula!R36 -> 12,845 sek.
C37: =tabula!C37 -> 31 | D37: =tabula!D37 -> Pāru Terapija | E37: =tabula!E37 -> 90 | F37: =tabula!F37 -> 121 | G37: =tabula!G37 -> 91 | H37: =tabula!H37 -> 30 | I37: =tabula!I37 -> 97 | J37: =tabula!J37 -> 88 | K37: =tabula!K37 -> -7 | L37: =tabula!L37 -> 90 | M37: =tabula!M37 -> 110 | N37: =tabula!N37 -> 22 | O37: =tabula!O37 -> 732 | P37: =tabula!P37 -> 09 min. 39,066 | Q37: =tabula!Q37 -> 44 | R37: =tabula!R37 -> 13,161 sek.
C38: =tabula!C38 -> 32 | D38: =tabula!D38 -> Saule20 | E38: =tabula!E38 -> 70 | F38: =tabula!F38 -> 92 | G38: =tabula!G38 -> 106 | H38: =tabula!H38 -> 44 | I38: =tabula!I38 -> 87 | J38: =tabula!J38 -> 68 | K38: =tabula!K38 -> -5 | L38: =tabula!L38 -> 143 | M38: =tabula!M38 -> 102 | N38: =tabula!N38 -> 11 | O38: =tabula!O38 -> 718 | P38: =tabula!P38 -> 07 min. 54,027 | Q38: =tabula!Q38 -> 44 | R38: =tabula!R38 -> 10,773 sek.
C39: =tabula!C39 -> 33 | D39: =tabula!D39 -> PAGASTMĀJA | E39: =tabula!E39 -> 77 | F39: =tabula!F39 -> 77 | G39: =tabula!G39 -> 83 | H39: =tabula!H39 -> 33 | I39: =tabula!I39 -> 79 | J39: =tabula!J39 -> 83 | K39: =tabula!K39 -> 19 | L39: =tabula!L39 -> 108 | M39: =tabula!M39 -> 103 | N39: =tabula!N39 -> 54 | O39: =tabula!O39 -> 716 | P39: =tabula!P39 -> 13 min. 12,331 | Q39: =tabula!Q39 -> 52 | R39: =tabula!R39 -> 15,237 sek.
C40: =tabula!C40 -> 34 | D40: =tabula!D40 -> Murmuļi | E40: =tabula!E40 -> 71 | F40: =tabula!F40 -> 111 | G40: =tabula!G40 -> 74 | H40: =tabula!H40 -> 48 | I40: =tabula!I40 -> 93 | J40: =tabula!J40 -> 22 | K40: =tabula!K40 -> -8 | L40: =tabula!L40 -> 109 | M40: =tabula!M40 -> 145 | N40: =tabula!N40 -> 43 | O40: =tabula!O40 -> 708 | P40: =tabula!P40 -> 09 min. 35,986 | Q40: =tabula!Q40 -> 44 | R40: =tabula!R40 -> 13,091 sek.
C41: =tabula!C41 -> 35 | D41: =tabula!D41 -> Komanda_IR | E41: =tabula!E41 -> 74 | F41: =tabula!F41 -> 74 | G41: =tabula!G41 -> 82 | H41: =tabula!H41 -> 27 | I41: =tabula!I41 -> 86 | J41: =tabula!J41 -> 89 | K41: =tabula!K41 -> 40 | L41: =tabula!L41 -> 102 | M41: =tabula!M41 -> 84 | N41: =tabula!N41 -> 39 | O41: =tabula!O41 -> 697 | P41: =tabula!P41 -> 10 min. 24,188 | Q41: =tabula!Q41 -> 45 | R41: =tabula!R41 -> 13,871 sek.
C42: =tabula!C42 -> 36 | D42: =tabula!D42 -> Raymz&co | E42: =tabula!E42 -> 60 | F42: =tabula!F42 -> 63 | G42: =tabula!G42 -> 103 | H42: =tabula!H42 -> 21 | I42: =tabula!I42 -> 128 | J42: =tabula!J42 -> 41 | K42: =tabula!K42 -> 35 | L42: =tabula!L42 -> 135 | M42: =tabula!M42 -> 94 | N42: =tabula!N42 -> 17 | O42: =tabula!O42 -> 697 | P42: =tabula!P42 -> 07 min. 03,154 | Q42: =tabula!Q42 -> 41 | R42: =tabula!R42 -> 10,321 sek.
C43: =tabula!C43 -> 37 | D43: =tabula!D43 -> Marinē divatā 2 | E43: =tabula!E43 -> 11 | F43: =tabula!F43 -> 112 | G43: =tabula!G43 -> 84 | H43: =tabula!H43 -> 64 | I43: =tabula!I43 -> 86 | J43: =tabula!J43 -> 82 | K43: =tabula!K43 -> 4 | L43: =tabula!L43 -> 101 | M43: =tabula!M43 -> 98 | N43: =tabula!N43 -> 50 | O43: =tabula!O43 -> 692 | P43: =tabula!P43 -> 07 min. 53,825 | Q43: =tabula!Q43 -> 41 | R43: =tabula!R43 -> 11,296 sek.
C44: =tabula!C44 -> 38 | D44: =tabula!D44 -> Kadrs33 | E44: =tabula!E44 -> 92 | F44: =tabula!F44 -> 101 | G44: =tabula!G44 -> 102 | H44: =tabula!H44 -> 22 | I44: =tabula!I44 -> 89 | J44: =tabula!J44 -> 86 | K44: =tabula!K44 -> 5 | L44: =tabula!L44 -> 66 | M44: =tabula!M44 -> 49 | N44: =tabula!N44 -> 72 | O44: =tabula!O44 -> 684 | P44: =tabula!P44 -> 07 min. 10,096 | Q44: =tabula!Q44 -> 41 | R44: =tabula!R44 -> 10,490 sek.
C45: =tabula!C45 -> 39 | D45: =tabula!D45 -> MEKA | E45: =tabula!E45 -> 86 | F45: =tabula!F45 -> 25 | G45: =tabula!G45 -> 43 | H45: =tabula!H45 -> 46 | I45: =tabula!I45 -> 99 | J45: =tabula!J45 -> 107 | K45: =tabula!K45 -> 37 | L45: =tabula!L45 -> 83 | M45: =tabula!M45 -> 92 | N45: =tabula!N45 -> 52 | O45: =tabula!O45 -> 670 | P45: =tabula!P45 -> 10 min. 54,618 | Q45: =tabula!Q45 -> 46 | R45: =tabula!R45 -> 14,231 sek.
C46: =tabula!C46 -> 40 | D46: =tabula!D46 -> Pampera noslēpums | E46: =tabula!E46 -> 30 | F46: =tabula!F46 -> 58 | G46: =tabula!G46 -> 67 | H46: =tabula!H46 -> 39 | I46: =tabula!I46 -> 133 | J46: =tabula!J46 -> 63 | K46: =tabula!K46 -> 32 | L46: =tabula!L46 -> 85 | M46: =tabula!M46 -> 87 | N46: =tabula!N46 -> 70 | O46: =tabula!O46 -> 664 | P46: =tabula!P46 -> 13 min. 41,973 | Q46: =tabula!Q46 -> 49 | R46: =tabula!R46 -> 16,775 sek.
C47: =tabula!C47 -> 41 | D47: =tabula!D47 -> PSP | E47: =tabula!E47 -> 58 | F47: =tabula!F47 -> 102 | G47: =tabula!G47 -> 59 | H47: =tabula!H47 -> 22 | I47: =tabula!I47 -> 109 | J47: =tabula!J47 -> 53 | K47: =tabula!K47 -> 46 | L47: =tabula!L47 -> 84 | M47: =tabula!M47 -> 56 | N47: =tabula!N47 -> 50 | O47: =tabula!O47 -> 639 | P47: =tabula!P47 -> 11 min. 22,534 | Q47: =tabula!Q47 -> 43 | R47: =tabula!R47 -> 15,873 sek.
C48: =tabula!C48 -> 42 | D48: =tabula!D48 -> Žorika garāža | E48: =tabula!E48 -> 66 | F48: =tabula!F48 -> 47 | G48: =tabula!G48 -> 75 | H48: =tabula!H48 -> 33 | I48: =tabula!I48 -> 86 | J48: =tabula!J48 -> 115 | K48: =tabula!K48 -> -26 | L48: =tabula!L48 -> 88 | M48: =tabula!M48 -> 136 | N48: =tabula!N48 -> 17 | O48: =tabula!O48 -> 637 | P48: =tabula!P48 -> 04 min. 34,680 | Q48: =tabula!Q48 -> 34 | R48: =tabula!R48 -> 08,079 sek.
C49: =tabula!C49 -> 43 | D49: =tabula!D49 -> Kaķumīļi | E49: =tabula!E49 -> 67 | F49: =tabula!F49 -> 93 | G49: =tabula!G49 -> 39 | H49: =tabula!H49 -> 43 | I49: =tabula!I49 -> 61 | J49: =tabula!J49 -> 111 | K49: =tabula!K49 -> 12 | L49: =tabula!L49 -> 72 | M49: =tabula!M49 -> 109 | N49: =tabula!N49 -> 21 | O49: =tabula!O49 -> 628 | P49: =tabula!P49 -> 08 min. 20,490 | Q49: =tabula!Q49 -> 38 | R49: =tabula!R49 -> 13,171 sek.
C50: =tabula!C50 -> 44 | D50: =tabula!D50 -> Šovakar Nepālī | E50: =tabula!E50 -> 82 | F50: =tabula!F50 -> 51 | G50: =tabula!G50 -> 48 | H50: =tabula!H50 -> 37 | I50: =tabula!I50 -> 102 | J50: =tabula!J50 -> 88 | K50: =tabula!K50 -> 2 | L50: =tabula!L50 -> 67 | M50: =tabula!M50 -> 80 | N50: =tabula!N50 -> 55 | O50: =tabula!O50 -> 612 | P50: =tabula!P50 -> 10 min. 47,772 | Q50: =tabula!Q50 -> 43 | R50: =tabula!R50 -> 15,064 sek.
C51: =tabula!C51 -> 45 | D51: =tabula!D51 -> LB | E51: =tabula!E51 -> 42 | F51: =tabula!F51 -> 53 | G51: =tabula!G51 -> 89 | H51: =tabula!H51 -> 60 | I51: =tabula!I51 -> 66 | J51: =tabula!J51 -> 46 | K51: =tabula!K51 -> 0 | L51: =tabula!L51 -> 119 | M51: =tabula!M51 -> 84 | N51: =tabula!N51 -> 45 | O51: =tabula!O51 -> 604 | P51: =tabula!P51 -> 07 min. 52,142 | Q51: =tabula!Q51 -> 38 | R51: =tabula!R51 -> 12,425 sek.
C52: =tabula!C52 -> 46 | D52: =tabula!D52 -> grūdējzvirbuļi | E52: =tabula!E52 -> 79 | F52: =tabula!F52 -> 101 | G52: =tabula!G52 -> 77 | H52: =tabula!H52 -> 67 | I52: =tabula!I52 -> 74 | J52: =tabula!J52 -> 52 | K52: =tabula!K52 -> -12 | L52: =tabula!L52 -> 82 | M52: =tabula!M52 -> 47 | N52: =tabula!N52 -> 29 | O52: =tabula!O52 -> 596 | P52: =tabula!P52 -> 12 min. 00,891 | Q52: =tabula!Q52 -> 44 | R52: =tabula!R52 -> 16,384 sek.
C53: =tabula!C53 -> 47 | D53: =tabula!D53 -> Odrija rullē | E53: =tabula!E53 -> 49 | F53: =tabula!F53 -> 105 | G53: =tabula!G53 -> 111 | H53: =tabula!H53 -> 38 | I53: =tabula!I53 -> 33 | J53: =tabula!J53 -> 21 | K53: =tabula!K53 -> 30 | L53: =tabula!L53 -> 64 | M53: =tabula!M53 -> 104 | N53: =tabula!N53 -> 39 | O53: =tabula!O53 -> 594 | P53: =tabula!P53 -> 06 min. 45,106 | Q53: =tabula!Q53 -> 35 | R53: =tabula!R53 -> 11,574 sek.
C54: =tabula!C54 -> 48 | D54: =tabula!D54 -> Ēnas | E54: =tabula!E54 -> 40 | F54: =tabula!F54 -> 70 | G54: =tabula!G54 -> 66 | H54: =tabula!H54 -> 21 | I54: =tabula!I54 -> 117 | J54: =tabula!J54 -> 76 | K54: =tabula!K54 -> 15 | L54: =tabula!L54 -> 66 | M54: =tabula!M54 -> 101 | N54: =tabula!N54 -> 20 | O54: =tabula!O54 -> 592 | P54: =tabula!P54 -> 07 min. 04,722 | Q54: =tabula!Q54 -> 37 | R54: =tabula!R54 -> 11,479 sek.
C55: =tabula!C55 -> 49 | D55: =tabula!D55 -> MARTA KRUSTIŅSONE | E55: =tabula!E55 -> 63 | F55: =tabula!F55 -> 114 | G55: =tabula!G55 -> 74 | H55: =tabula!H55 -> 20 | I55: =tabula!I55 -> 82 | J55: =tabula!J55 -> 43 | K55: =tabula!K55 -> 24 | L55: =tabula!L55 -> 61 | M55: =tabula!M55 -> 80 | N55: =tabula!N55 -> 28 | O55: =tabula!O55 -> 589 | P55: =tabula!P55 -> 08 min. 46,463 | Q55: =tabula!Q55 -> 37 | R55: =tabula!R55 -> 14,229 sek.
C56: =tabula!C56 -> 50 | D56: =tabula!D56 -> Close enough | E56: =tabula!E56 -> 56 | F56: =tabula!F56 -> 93 | G56: =tabula!G56 -> 65 | H56: =tabula!H56 -> 17 | I56: =tabula!I56 -> 61 | J56: =tabula!J56 -> 21 | K56: =tabula!K56 -> 5 | L56: =tabula!L56 -> 86 | M56: =tabula!M56 -> 111 | N56: =tabula!N56 -> 61 | O56: =tabula!O56 -> 576 | P56: =tabula!P56 -> 10 min. 34,676 | Q56: =tabula!Q56 -> 39 | R56: =tabula!R56 -> 16,274 sek.
C58: LIELDRAUGS ATBALSTĪTĀJI

Sheet 51-100
C2: =tabula!C2 -> "Ģeogrāfijas/tūrisma viktorīna" (tiešsaistē / vebinārā) | 2024.gada 26.oktobris
B3: Grupa | C3: =tabula!C3 -> # | D3: =tabula!D3 -> Dalībnieks | Raunds | Tēma | Max punkti raundā (bez bonusiem) | E3: =tabula!E3 -> 1 | F3: =tabula!F3 -> 2 | G3: =tabula!G3 -> 3 | H3: =tabula!H3 -> 4 | I3: =tabula!I3 -> 5 | J3: =tabula!J3 -> 6 | K3: =tabula!K3 -> 7 | L3: =tabula!L3 -> 8 | M3: =tabula!M3 -> 9 | N3: =tabula!N3 -> 10 | O3: =tabula!O3 -> KOPĀ | P3: =tabula!P3 -> Laiks kopā uz pareizajām atbildēm | Q3: =tabula!Q3 -> Pareizās atbildes (max 68) | R3: =tabula!R3 -> Vid.laiks uz 1 pareizo atb.
E4: =tabula!E4 -> Pavediens | F4: =tabula!F4 -> Divas atbildes | G4: =tabula!G4 -> Ekspresis | H4: =tabula!H4 -> Burtu mīkla | I4: =tabula!I4 -> Ķēde | J4: =tabula!J4 -> Latvija | K4: =tabula!K4 -> Risks: atpazīsti objektu | L4: =tabula!L4 -> Kas kopīgs? | M4: =tabula!M4 -> Liekais pazūd ārpus kastes | N4: =tabula!N4 -> Audio
E5: =tabula!E5 -> 150 | F5: =tabula!F5 -> 180 | G5: =tabula!G5 -> 180 | H5: =tabula!H5 -> 180 | I5: 175 | J5: =tabula!J5 -> 150 | K5: =tabula!K5 -> 120 | L5: =tabula!L5 -> 180 | M5: =tabula!M5 -> 180 | N5: =tabula!N5 -> 150 | O5: =tabula!O5 -> 1645
D6: =tabula!D6 -> Vidējie rādītāji | E6: =tabula!E6 -> 64.9 | F6: =tabula!F6 -> 77.9 | G6: =tabula!G6 -> 79.1 | H6: =tabula!H6 -> 43.6 | I6: =tabula!I6 -> 87.3 | J6: =tabula!J6 -> 68.1 | K6: =tabula!K6 -> 15.3 | L6: =tabula!L6 -> 85.4 | M6: =tabula!M6 -> 90.5 | N6: =tabula!N6 -> 41.3 | O6: =tabula!O6 -> 653.3
B7: 3 | C7: =tabula!C57 -> 51 | D7: =tabula!D57 -> Active | E7: =tabula!E57 -> 82 | F7: =tabula!F57 -> 82 | G7: =tabula!G57 -> 53 | H7: =tabula!H57 -> 17 | I7: =tabula!I57 -> 70 | J7: =tabula!J57 -> 93 | K7: =tabula!K57 -> 16 | L7: =tabula!L57 -> 59 | M7: =tabula!M57 -> 49 | N7: =tabula!N57 -> 49 | O7: =tabula!O57 -> 570 | P7: =tabula!P57 -> 11 min. 43,183 | Q7: =tabula!Q57 -> 42 | R7: =tabula!R57 -> 16,742 sek.
B8: 1 | C8: =tabula!C58 -> 52 | D8: =tabula!D58 -> Kurwa Bober | E8: =tabula!E58 -> 43 | F8: =tabula!F58 -> 68 | G8: =tabula!G58 -> 106 | H8: =tabula!H58 -> 38 | I8: =tabula!I58 -> 103 | J8: =tabula!J58 -> 62 | K8: =tabula!K58 -> -22 | L8: =tabula!L58 -> 53 | M8: =tabula!M58 -> 87 | N8: =tabula!N58 -> 19 | O8: =tabula!O58 -> 557 | P8: =tabula!P58 -> 06 min. 39,027 | Q8: =tabula!Q58 -> 35 | R8: =tabula!R58 -> 11,401 sek.
B9: 1 | C9: =tabula!C59 -> 53 | D9: =tabula!D59 -> Dilles | E9: =tabula!E59 -> 46 | F9: =tabula!F59 -> 94 | G9: =tabula!G59 -> 53 | H9: =tabula!H59 -> 21 | I9: =tabula!I59 -> 72 | J9: =tabula!J59 -> 71 | K9: =tabula!K59 -> -11 | L9: =tabula!L59 -> 72 | M9: =tabula!M59 -> 114 | N9: =tabula!N59 -> 6 | O9: =tabula!O59 -> 538 | P9: =tabula!P59 -> 09 min. 18,961 | Q9: =tabula!Q59 -> 36 | R9: =tabula!R59 -> 15,527 sek.
B10: 3 | C10: =tabula!C60 -> 54 | D10: =tabula!D60 -> Bebri liepā | E10: =tabula!E60 -> 39 | F10: =tabula!F60 -> 71 | G10: =tabula!G60 -> 72 | H10: =tabula!H60 -> 38 | I10: =tabula!I60 -> 22 | J10: =tabula!J60 -> 69 | K10: =tabula!K60 -> 22 | L10: =tabula!L60 -> 101 | M10: =tabula!M60 -> 81 | N10: =tabula!N60 -> 20 | O10: =tabula!O60 -> 535 | P10: =tabula!P60 -> 10 min. 22,159 | Q10: =tabula!Q60 -> 38 | R10: =tabula!R60 -> 16,373 sek.
B11: 1 | C11: =tabula!C61 -> 55 | D11: =tabula!D61 -> Agnusdei | E11: =tabula!E61 -> 83 | F11: =tabula!F61 -> 30 | G11: =tabula!G61 -> 51 | H11: =tabula!H61 -> 40 | I11: =tabula!I61 -> 141 | J11: =tabula!J61 -> 37 | K11: =tabula!K61 -> 11 | L11: =tabula!L61 -> 20 | M11: =tabula!M61 -> 80 | N11: =tabula!N61 -> 23 | O11: =tabula!O61 -> 516 | P11: =tabula!P61 -> 07 min. 11,017 | Q11: =tabula!Q61 -> 33 | R11: =tabula!R61 -> 13,061 sek.
B12: 3 | C12: =tabula!C62 -> 56 | D12: =tabula!D62 -> Swan | E12: =tabula!E62 -> 64 | F12: =tabula!F62 -> 71 | G12: =tabula!G62 -> 22 | H12: =tabula!H62 -> 45 | I12: =tabula!I62 -> 94 | J12: =tabula!J62 -> 81 | K12: =tabula!K62 -> -31 | L12: =tabula!L62 -> 28 | M12: =tabula!M62 -> 72 | N12: =tabula!N62 -> 68 | O12: =tabula!O62 -> 514 | P12: =tabula!P62 -> 09 min. 28,286 | Q12: =tabula!Q62 -> 36 | R12: =tabula!R62 -> 15,786 sek.
B13: 1 | C13: =tabula!C63 -> 57 | D13: =tabula!D63 -> Gribu ceļot.lv | E13: =tabula!E63 -> 50 | F13: =tabula!F63 -> 63 | G13: =tabula!G63 -> 60 | H13: =tabula!H63 -> 53 | I13: =tabula!I63 -> 61 | J13: =tabula!J63 -> 33 | K13: =tabula!K63 -> -10 | L13: =tabula!L63 -> 82 | M13: =tabula!M63 -> 84 | N13: =tabula!N63 -> 34 | O13: =tabula!O63 -> 510 | P13: =tabula!P63 -> 06 min. 44,658 | Q13: =tabula!Q63 -> 32 | R13: =tabula!R63 -> 12,646 sek.
C14: =tabula!C64 -> 58 | D14: =tabula!D64 -> MIKO | E14: =tabula!E64 -> 43 | F14: =tabula!F64 -> 55 | G14: =tabula!G64 -> 60 | H14: =tabula!H64 -> 20 | I14: =tabula!I64 -> 76 | J14: =tabula!J64 -> 39 | K14: =tabula!K64 -> 24 | L14: =tabula!L64 -> 44 | M14: =tabula!M64 -> 106 | N14: =tabula!N64 -> 38 | O14: =tabula!O64 -> 505 | P14: =tabula!P64 -> 12 min. 22,434 | Q14: =tabula!Q64 -> 41 | R14: =tabula!R64 -> 18,108 sek.
C15: =tabula!C65 -> 59 | D15: =tabula!D65 -> LOTES Co | E15: =tabula!E65 -> 62 | F15: =tabula!F65 -> 51 | G15: =tabula!G65 -> 53 | H15: =tabula!H65 -> 15 | I15: =tabula!I65 -> 52 | J15: =tabula!J65 -> 72 | K15: =tabula!K65 -> 28 | L15: =tabula!L65 -> 61 | M15: =tabula!M65 -> 67 | N15: =tabula!N65 -> 35 | O15: =tabula!O65 -> 496 | P15: =tabula!P65 -> 11 min. 10,069 | Q15: =tabula!Q65 -> 38 | R15: =tabula!R65 -> 17,633 sek.
C16: =tabula!C66 -> 60 | D16: =tabula!D66 -> Skaideītes Karte | E16: =tabula!E66 -> 51 | F16: =tabula!F66 -> 59 | G16: =tabula!G66 -> 73 | H16: =tabula!H66 -> 16 | I16: =tabula!I66 -> 36 | J16: =tabula!J66 -> 47 | K16: =tabula!K66 -> 28 | L16: =tabula!L66 -> 34 | M16: =tabula!M66 -> 60 | N16: =tabula!N66 -> 92 | O16: =tabula!O66 -> 496 | P16: =tabula!P66 -> 08 min. 53,493 | Q16: =tabula!Q66 -> 36 | R16: =tabula!R66 -> 14,819 sek.
C17: =tabula!C67 -> 61 | D17: =tabula!D67 -> Stams | E17: =tabula!E67 -> 79 | F17: =tabula!F67 -> 48 | G17: =tabula!G67 -> 101 | H17: =tabula!H67 -> 25 | I17: =tabula!I67 -> 79 | J17: =tabula!J67 -> 36 | K17: =tabula!K67 -> -19 | L17: =tabula!L67 -> 36 | M17: =tabula!M67 -> 90 | N17: =tabula!N67 -> 9 | O17: =tabula!O67 -> 484 | P17: =tabula!P67 -> 07 min. 51,292 | Q17: =tabula!Q67 -> 35 | R17: =tabula!R67 -> 13,465 sek.
C18: =tabula!C68 -> 62 | D18: =tabula!D68 -> Jirgens Klops | E18: =tabula!E68 -> 48 | F18: =tabula!F68 -> 36 | G18: =tabula!G68 -> 57 | H18: =tabula!H68 -> 11 | I18: =tabula!I68 -> 75 | J18: =tabula!J68 -> 54 | K18: =tabula!K68 -> -10 | L18: =tabula!L68 -> 96 | M18: =tabula!M68 -> 54 | N18: =tabula!N68 -> 53 | O18: =tabula!O68 -> 474 | P18: =tabula!P68 -> 08 min. 36,529 | Q18: =tabula!Q68 -> 35 | R18: =tabula!R68 -> 14,758 sek.
C19: =tabula!C69 -> 63 | D19: =tabula!D69 -> Kriminālā Jēkabiela | E19: =tabula!E69 -> 50 | F19: =tabula!F69 -> 31 | G19: =tabula!G69 -> 87 | H19: =tabula!H69 -> 47 | I19: =tabula!I69 -> 53 | J19: =tabula!J69 -> 70 | K19: =tabula!K69 -> 35 | L19: =tabula!L69 -> 32 | M19: =tabula!M69 -> 41 | N19: =tabula!N69 -> 26 | O19: =tabula!O69 -> 472 | P19: =tabula!P69 -> 08 min. 06,084 | Q19: =tabula!Q69 -> 34 | R19: =tabula!R69 -> 14,297 sek.
C20: =tabula!C70 -> 64 | D20: =tabula!D70 -> VERA | E20: =tabula!E70 -> 0 | F20: =tabula!F70 -> 95 | G20: =tabula!G70 -> 64 | H20: =tabula!H70 -> 43 | I20: =tabula!I70 -> 60 | J20: =tabula!J70 -> 50 | K20: =tabula!K70 -> 55 | L20: =tabula!L70 -> 65 | M20: =tabula!M70 -> 40 | N20: =tabula!N70 -> 0 | O20: =tabula!O70 -> 472 | P20: =tabula!P70 -> 05 min. 45,708 | Q20: =tabula!Q70 -> 28 | R20: =tabula!R70 -> 12,347 sek.
C21: =tabula!C71 -> 65 | D21: =tabula!D71 -> Super kosmoss | E21: =tabula!E71 -> 44 | F21: =tabula!F71 -> 62 | G21: =tabula!G71 -> 76 | H21: =tabula!H71 -> 0 | I21: =tabula!I71 -> 60 | J21: =tabula!J71 -> 80 | K21: =tabula!K71 -> -31 | L21: =tabula!L71 -> 84 | M21: =tabula!M71 -> 81 | N21: =tabula!N71 -> 13 | O21: =tabula!O71 -> 469 | P21: =tabula!P71 -> 07 min. 18,832 | Q21: =tabula!Q71 -> 32 | R21: =tabula!R71 -> 13,714 sek.
C22: =tabula!C72 -> 66 | D22: =tabula!D72 -> Yuki | E22: =tabula!E72 -> 49 | F22: =tabula!F72 -> 42 | G22: =tabula!G72 -> 72 | H22: =tabula!H72 -> 44 | I22: =tabula!I72 -> 27 | J22: =tabula!J72 -> 38 | K22: =tabula!K72 -> 9 | L22: =tabula!L72 -> 67 | M22: =tabula!M72 -> 75 | N22: =tabula!N72 -> 45 | O22: =tabula!O72 -> 468 | P22: =tabula!P72 -> 10 min. 15,704 | Q22: =tabula!Q72 -> 37 | R22: =tabula!R72 -> 16,641 sek.
C23: =tabula!C73 -> 67 | D23: =tabula!D73 -> MaZulis | E23: =tabula!E73 -> 40 | F23: =tabula!F73 -> 53 | G23: =tabula!G73 -> 76 | H23: =tabula!H73 -> 18 | I23: =tabula!I73 -> 23 | J23: =tabula!J73 -> 39 | K23: =tabula!K73 -> 20 | L23: =tabula!L73 -> 103 | M23: =tabula!M73 -> 47 | N23: =tabula!N73 -> 31 | O23: =tabula!O73 -> 450 | P23: =tabula!P73 -> 09 min. 54,277 | Q23: =tabula!Q73 -> 34 | R23: =tabula!R73 -> 17,479 sek.
C24: =tabula!C74 -> 68 | D24: =tabula!D74 -> Minnie | E24: =tabula!E74 -> 41 | F24: =tabula!F74 -> 8 | G24: =tabula!G74 -> 73 | H24: =tabula!H74 -> 22 | I24: =tabula!I74 -> 47 | J24: =tabula!J74 -> 54 | K24: =tabula!K74 -> -3 | L24: =tabula!L74 -> 72 | M24: =tabula!M74 -> 76 | N24: =tabula!N74 -> 47 | O24: =tabula!O74 -> 437 | P24: =tabula!P74 -> 07 min. 38,046 | Q24: =tabula!Q74 -> 32 | R24: =tabula!R74 -> 14,314 sek.
C25: =tabula!C75 -> 69 | D25: =tabula!D75 -> Mušļi | E25: =tabula!E75 -> 58 | F25: =tabula!F75 -> 52 | G25: =tabula!G75 -> 98 | H25: =tabula!H75 -> 39 | I25: =tabula!I75 -> 24 | J25: =tabula!J75 -> 20 | K25: =tabula!K75 -> -3 | L25: =tabula!L75 -> 41 | M25: =tabula!M75 -> 88 | N25: =tabula!N75 -> 20 | O25: =tabula!O75 -> 437 | P25: =tabula!P75 -> 05 min. 56,097 | Q25: =tabula!Q75 -> 28 | R25: =tabula!R75 -> 12,718 sek.
C26: =tabula!C76 -> 70 | D26: =tabula!D76 -> Drain Bamage | E26: =tabula!E76 -> 16 | F26: =tabula!F76 -> 84 | G26: =tabula!G76 -> 86 | H26: =tabula!H76 -> 26 | I26: =tabula!I76 -> 24 | J26: =tabula!J76 -> 19 | K26: =tabula!K76 -> -6 | L26: =tabula!L76 -> 94 | M26: =tabula!M76 -> 52 | N26: =tabula!N76 -> 30 | O26: =tabula!O76 -> 425 | P26: =tabula!P76 -> 05 min. 14,132 | Q26: =tabula!Q76 -> 26 | R26: =tabula!R76 -> 12,082 sek.
C27: =tabula!C77 -> 71 | D27: =tabula!D77 -> Pļavnieku gang | E27: =tabula!E77 -> 40 | F27: =tabula!F77 -> 36 | G27: =tabula!G77 -> 42 | H27: =tabula!H77 -> 24 | I27: =tabula!I77 -> 72 | J27: =tabula!J77 -> 47 | K27: =tabula!K77 -> 25 | L27: =tabula!L77 -> 28 | M27: =tabula!M77 -> 74 | N27: =tabula!N77 -> 27 | O27: =tabula!O77 -> 415 | P27: =tabula!P77 -> 08 min. 40,358 | Q27: =tabula!Q77 -> 32 | R27: =tabula!R77 -> 16,261 sek.
C28: =tabula!C78 -> 72 | D28: =tabula!D78 -> Lilii | E28: =tabula!E78 -> 12 | F28: =tabula!F78 -> 62 | G28: =tabula!G78 -> 82 | H28: =tabula!H78 -> 0 | I28: =tabula!I78 -> 21 | J28: =tabula!J78 -> 37 | K28: =tabula!K78 -> 16 | L28: =tabula!L78 -> 85 | M28: =tabula!M78 -> 52 | N28: =tabula!N78 -> 45 | O28: =tabula!O78 -> 412 | P28: =tabula!P78 -> 06 min. 39,704 | Q28: =tabula!Q78 -> 29 | R28: =tabula!R78 -> 16,982 sek.
C29: =tabula!C79 -> 73 | D29: =tabula!D79 -> Mārupes krītiņi | E29: =tabula!E79 -> 16 | F29: =tabula!F79 -> 31 | G29: =tabula!G79 -> 76 | H29: =tabula!H79 -> 0 | I29: =tabula!I79 -> 39 | J29: =tabula!J79 -> 78 | K29: =tabula!K79 -> -27 | L29: =tabula!L79 -> 70 | M29: =tabula!M79 -> 95 | N29: =tabula!N79 -> 34 | O29: =tabula!O79 -> 412 | P29: =tabula!P79 -> 06 min. 16,445 | Q29: =tabula!Q79 -> 29 | R29: =tabula!R79 -> 12,981 sek.
C30: =tabula!C80 -> 74 | D30: =tabula!D80 -> Smilšu rukši | E30: =tabula!E80 -> 50 | F30: =tabula!F80 -> 86 | G30: =tabula!G80 -> 58 | H30: =tabula!H80 -> 23 | I30: =tabula!I80 -> 48 | J30: =tabula!J80 -> 42 | K30: =tabula!K80 -> -5 | L30: =tabula!L80 -> 44 | M30: =tabula!M80 -> 35 | N30: =tabula!N80 -> 29 | O30: =tabula!O80 -> 410 | P30: =tabula!P80 -> 11 min. 17,188 | Q30: =tabula!Q80 -> 36 | R30: =tabula!R80 -> 18,811 sek.
C31: =tabula!C81 -> 75 | D31: =tabula!D81 -> Guchi | E31: =tabula!E81 -> 15 | F31: =tabula!F81 -> 51 | G31: =tabula!G81 -> 49 | H31: =tabula!H81 -> 12 | I31: =tabula!I81 -> 47 | J31: =tabula!J81 -> 41 | K31: =tabula!K81 -> 19 | L31: =tabula!L81 -> 70 | M31: =tabula!M81 -> 79 | N31: =tabula!N81 -> 16 | O31: =tabula!O81 -> 399 | P31: =tabula!P81 -> 06 min. 43,161 | Q31: =tabula!Q81 -> 28 | R31: =tabula!R81 -> 14,399 sek.
C32: =tabula!C82 -> 76 | D32: =tabula!D82 -> Haizivis uzvalkos | E32: =tabula!E82 -> 27 | F32: =tabula!F82 -> 51 | G32: =tabula!G82 -> 43 | H32: =tabula!H82 -> 55 | I32: =tabula!I82 -> 72 | J32: =tabula!J82 -> 51 | K32: =tabula!K82 -> -20 | L32: =tabula!L82 -> 43 | M32: =tabula!M82 -> 37 | N32: =tabula!N82 -> 19 | O32: =tabula!O82 -> 378 | P32: =tabula!P82 -> 09 min. 30,069 | Q32: =tabula!Q82 -> 32 | R32: =tabula!R82 -> 17,815 sek.
C33: =tabula!C83 -> 77 | D33: =tabula!D83 -> Yu | E33: =tabula!E83 -> 7 | F33: =tabula!F83 -> 74 | G33: =tabula!G83 -> 46 | H33: =tabula!H83 -> 17 | I33: =tabula!I83 -> 43 | J33: =tabula!J83 -> 45 | K33: =tabula!K83 -> -47 | L33: =tabula!L83 -> 43 | M33: =tabula!M83 -> 84 | N33: =tabula!N83 -> 39 | O33: =tabula!O83 -> 351 | P33: =tabula!P83 -> 03 min. 45,201 | Q33: =tabula!Q83 -> 23 | R33: =tabula!R83 -> 09,791 sek.
C34: =tabula!C84 -> 78 | D34: =tabula!D84 -> Jauni un bagāti un laimīgi | E34: =tabula!E84 -> 51 | F34: =tabula!F84 -> 44 | G34: =tabula!G84 -> 57 | H34: =tabula!H84 -> 0 | I34: =tabula!I84 -> 30 | J34: =tabula!J84 -> 28 | K34: =tabula!K84 -> -9 | L34: =tabula!L84 -> 47 | M34: =tabula!M84 -> 60 | N34: =tabula!N84 -> 37 | O34: =tabula!O84 -> 345 | P34: =tabula!P84 -> 07 min. 03,151 | Q34: =tabula!Q84 -> 26 | R34: =tabula!R84 -> 16,275 sek.
C35: =tabula!C85 -> 79 | D35: =tabula!D85 -> Raiens | E35: =tabula!E85 -> 45 | F35: =tabula!F85 -> 30 | G35: =tabula!G85 -> 60 | H35: =tabula!H85 -> 11 | I35: =tabula!I85 -> 32 | J35: =tabula!J85 -> 31 | K35: =tabula!K85 -> -14 | L35: =tabula!L85 -> 44 | M35: =tabula!M85 -> 74 | N35: =tabula!N85 -> 21 | O35: =tabula!O85 -> 334 | P35: =tabula!P85 -> 07 min. 19,662 | Q35: =tabula!Q85 -> 27 | R35: =tabula!R85 -> 16,284 sek.
C36: =tabula!C86 -> 80 | D36: =tabula!D86 -> Dora | E36: =tabula!E86 -> 61 | F36: =tabula!F86 -> 40 | G36: =tabula!G86 -> 85 | H36: =tabula!H86 -> 19 | I36: =tabula!I86 -> 40 | J36: =tabula!J86 -> 22 | K36: =tabula!K86 -> -13 | L36: =tabula!L86 -> 22 | M36: =tabula!M86 -> 57 | N36: =tabula!N86 -> 0 | O36: =tabula!O86 -> 333 | P36: =tabula!P86 -> 03 min. 16,537 | Q36: =tabula!Q86 -> 22 | R36: =tabula!R86 -> 08,934 sek.
C37: =tabula!C87 -> 81 | D37: =tabula!D87 -> Vīnoga pelikānā | E37: =tabula!E87 -> 0 | F37: =tabula!F87 -> 0 | G37: =tabula!G87 -> 59 | H37: =tabula!H87 -> 105 | I37: =tabula!I87 -> 20 | J37: =tabula!J87 -> 33 | K37: =tabula!K87 -> -10 | L37: =tabula!L87 -> 8 | M37: =tabula!M87 -> 83 | N37: =tabula!N87 -> 23 | O37: =tabula!O87 -> 321 | P37: =tabula!P87 -> 03 min. 01,452 | Q37: =tabula!Q87 -> 18 | R37: =tabula!R87 -> 10,081 sek.
C38: =tabula!C88 -> 82 | D38: =tabula!D88 -> YoungOger | E38: =tabula!E88 -> 20 | F38: =tabula!F88 -> 50 | G38: =tabula!G88 -> 49 | H38: =tabula!H88 -> 4 | I38: =tabula!I88 -> 35 | J38: =tabula!J88 -> 41 | K38: =tabula!K88 -> -46 | L38: =tabula!L88 -> 85 | M38: =tabula!M88 -> 0 | N38: =tabula!N88 -> 41 | O38: =tabula!O88 -> 279 | P38: =tabula!P88 -> 06 min. 51,101 | Q38: =tabula!Q88 -> 27 | R38: =tabula!R88 -> 15,226 sek.
B39: 1 | C39: =tabula!C89 -> 83 | D39: =tabula!D89 -> ANNIŅMUIŽA | E39: =tabula!E89 -> 50 | F39: =tabula!F89 -> 32 | G39: =tabula!G89 -> 37 | H39: =tabula!H89 -> 10 | I39: =tabula!I89 -> 41 | J39: =tabula!J89 -> 44 | K39: =tabula!K89 -> -15 | L39: =tabula!L89 -> 15 | M39: =tabula!M89 -> 42 | N39: =tabula!N89 -> 0 | O39: =tabula!O89 -> 256 | P39: =tabula!P89 -> 07 min. 30,624 | Q39: =tabula!Q89 -> 23 | R39: =tabula!R89 -> 19,592 sek.
B40: 2 | C40: =tabula!C90 -> 84 | D40: =tabula!D90 -> kūciņa. | E40: =tabula!E90 -> 0 | F40: =tabula!F90 -> 0 | G40: =tabula!G90 -> 0 | H40: =tabula!H90 -> 0 | I40: =tabula!I90 -> 0 | J40: =tabula!J90 -> 0 | K40: =tabula!K90 -> 0 | L40: =tabula!L90 -> 92 | M40: =tabula!M90 -> 96 | N40: =tabula!N90 -> 39 | O40: =tabula!O90 -> 227 | P40: =tabula!P90 -> 02 min. 17,590 | Q40: =tabula!Q90 -> 11 | R40: =tabula!R90 -> 12,508 sek.
C42: LIELDRAUGS ATBALSTĪTĀJI

Sheet raundi
B2: =CONCATENATE(tabula!C2," --> Raundu uzvarētāji") -> "Ģeogrāfijas/tūrisma viktorīna" (tiešsaistē / vebinārā) | 2024.gada 26.oktobris --> Raundu uzvarētāji
B3: # | C3: Raunda nosaukums | D3: Dalībnieks | E3: Rezultāts | F3: AVG | G3: MAX | H3: % no max
B4: 1 | C4: =TRANSPOSE(tabula!E4:N4) -> Pavediens | D4: Okavango | E4: 118 | F4: =TRANSPOSE(tabula!E6:N6) -> 64.9 | G4: =TRANSPOSE(tabula!E5:N5) -> 150 | H4: =E4/G4 -> 0.7866666667
B5: 2 | C5: Divas atbildes | D5: Dunikas bridēji | E5: 178 | F5: 77.9 | G5: 180 | H5: =E5/G5 -> 0.9888888889
B6: 3 | C6: Ekspresis | D6: Kurzemnieks | E6: 143 | F6: 79.1 | G6: 180 | H6: 0.7944444444
B7: 4 | C7: Burtu mīkla | D7: LFG jeb LegFeelsGood! | E7: 113 | F7: 43.6 | G7: 180 | H7: 0.6277777778
B8: 5 | C8: Ķēde | D8: Imantā futbola nav | E8: 162 | F8: 87.3 | G8: 175 | H8: 0.9257142857
B9: 6 | C9: Latvija | D9: Kurzemnieks | E9: 143 | F9: 68.1 | G9: 150 | H9: 0.9533333333
B10: 7 | C10: Risks: atpazīsti objektu | D10: Hugis is back | E10: 79 | F10: 15.3 | G10: 120 | H10: 0.6583333333
B11: 8 | C11: Kas kopīgs? | D11: 8kb24 | E11: 165 | F11: 85.4 | G11: 180 | H11: 0.9166666667
B12: 9 | C12: Liekais pazūd ārpus kastes | D12: Rupuči, turās! | E12: 175 | F12: 90.5 | G12: 180 | H12: 0.9722222222
B13: 10 | C13: Audio | D13: LFG jeb LegFeelsGood! | E13: 102 | F13: 41.3 | G13: 150 | H13: 0.68
B14: - | C14: Uzvarētājs | E14: =tabula!O7 -> 1167 | F14: =tabula!O6 -> 653.3 | G14: =SUM(G4:G13) -> 1645 | H14: =E14/G14 -> 0.7094224924
C15: =tabula!D7 -> Kurzemnieks
B17: LIELDRAUGS ATBALSTĪTĀJI
